2CCN - Level 2 Cost Centre Name,,9CCN - Level 9 Cost Centre Name,9CCC - Level 9 Cost Centre Code,9AN - Level 9 Account Name,9AC - Level 9 Account Code,Transaction Description,Date Paid,Transaction Reference,Analysed Amount,2AC - Level 2 Account Codes,Supplier Name,Supplier Code
Gloucester City Council,23UE,Barbican Car Park,RB543,General Repair/Maint Buildings,3000,Barbican barriers,03/01/2017,427979,2250,NET,Mpl Wrought Iron Llp,03907P
Gloucester City Council,23UE,REDACTED,REDACTED,REDACTED,REDACTED,REDACTED,03/01/2017,REDACTED,175,NET,REDACTED,REDACTED
Gloucester City Council,23UE,Blackfriars Weddings,LA220,Fees For Services Received,5350,temporary staff w/e 18/12/16,03/01/2017,427986,185.3,NET,Re People,17253D
Gloucester City Council,23UE,Civica Admin Charges,RT105,Postages,5400,Post 28/11 - 09/12 2016,03/01/2017,427826,1015.65,NET,Royal Mail S.Wales & South West,35830S
Gloucester City Council,23UE,Council Streetcare Team,HI101,Maint Of Grounds - General,3030,Matson Pond seat legs removal,03/01/2017,427965,50,NET,Greenfields Garden Services Ltd,48130G
Gloucester City Council,23UE,Council Streetcare Team,HI101,Maint Of Grounds - General,3030,Tuffley Rovers car park fencing works,03/01/2017,427964,401.9,NET,Greenfields Garden Services Ltd,48130G
Gloucester City Council,23UE,Crematorium,HC200,"Seeds, Trees, Plants, Shrubs",3028,Tree ties,03/01/2017,427319,760,NET,Genus Plant Sourcing,14143S
Gloucester City Council,23UE,Development Management,PT200,Basic Pay - Temporary Staff,2751,temporary staff w/c 12/12/16,03/01/2017,427998,1852.5,NET,The Oyster Partnership Limited,14900T
Gloucester City Council,23UE,Development Management,PT200,Basic Pay - Temporary Staff,2751,temporary staff w/c 12/12/16,03/01/2017,427962,1586.13,NET,The Oyster Partnership Limited,14900T
Gloucester City Council,23UE,Development Management,PT200,Operational Equipment <5000,5012,chairs,03/01/2017,427967,295,NET,Cotswold Business Supplies,10835S
Gloucester City Council,23UE,Economic Development,FP300,Business Grant,7116,Business Grant,03/01/2017,425391,1500,NET,The New Gloucester Antique Centre,17259R
Gloucester City Council,23UE,Gloucester Guildhall,LA100,Cleaning Materials,3600,2017 Duty of Care costs,03/01/2017,427972,35,NET,Ocs Group Uk Limited T/A Cannon,06506A
Gloucester City Council,23UE,Guildhall Events,LA200,Advertising And Publicity,5702,adverts 26/11/16,03/01/2017,427961,500.02,NET,Local World Ltd,08556P
Gloucester City Council,23UE,Homelessness,CH120,Fees For Services Received,5350,chairs,03/01/2017,427967,185,NET,Cotswold Business Supplies,10835S
Gloucester City Council,23UE,Homelessness,CH120,Rent In Advance,5516,HOUSING RIA & DEPOSIT,03/01/2017,428006,301.22,NET,T J Edwards And Sons Ltd,17706L
Gloucester City Council,23UE,Homelessness Prevention,CH122,Fees For Services Received,5350,HOUSING RIA & DEPOSIT,03/01/2017,428006,525,NET,T J Edwards And Sons Ltd,17706L
Gloucester City Council,23UE,Housing Works In Default,HD500,Clearance And Cleansing Fees,5384,works in default Bishopstone Road,03/01/2017,427975,10095,NET,Pinetree (Gloucester) Ltd,53288Y
Gloucester City Council,23UE,Off Street Car Parks,PP110,Computer Software Maintenance,5427,cashless parking fees NOV16,03/01/2017,427571,573.42,NET,Chipside Ltd,06535T
Gloucester City Council,23UE,Off Street Car Parks,PP110,Computer Software Maintenance,5427,Third Party Charges,03/01/2017,427829,312.24,NET,Chipside Ltd,06535T
Gloucester City Council,23UE,Planning Policy & Heritage,PT300,Basic Pay - Temporary Staff,2751,temporary staff w/e 12/12/16,03/01/2017,427982,2204,NET,The Oyster Partnership Limited,14900T
Gloucester City Council,23UE,Robinswood All Paths Project,LY162,Contract Payments,0020,parts,03/01/2017,427966,1092.12,CAP,Loxston Groundcare,14309F
Gloucester City Council,23UE,Safer Stronger Communities,FP841,Other Minor Supplies Services,5590,Various Items,03/01/2017,427251,1820.75,NET,Gloucester Rugby Football Club,49396D
Gloucester City Council,23UE,The Arbor,HC501,Catering Provisions -Food,5110,food,03/01/2017,427577,111.69,NET,Bidvest Foodservice (3663),55585U
Gloucester City Council,23UE,The Arbor,HC501,Catering Provisions -Food,5110,food,03/01/2017,427994,109.31,NET,Janes Pantry,24500W
Gloucester City Council,23UE,Aspire Admin Charges,LC105,Fees For Services Received,5350,Memberships November 2016,04/01/2017,427736,435,NET,Aspire Sports & Cultural Trust,08135V
Gloucester City Council,23UE,Blackfriars,LA609,Hire Of Equipment,5020,Table Hire,04/01/2017,427820,88,NET,Valley Furniture Hire Ltd,08324P
Gloucester City Council,23UE,Blackfriars Weddings,LA220,Hire Of Equipment,5020,table & chair hire 16/12/16,04/01/2017,427879,170.5,NET,Valley Furniture Hire Ltd,08324P
Gloucester City Council,23UE,REDACTED,REDACTED,REDACTED,REDACTED,REDACTED,04/01/2017,REDACTED,175,NET,REDACTED,REDACTED
Gloucester City Council,23UE,Cemeteries,HC300,Repair/Maint Of Monuments,3004,Fibres,04/01/2017,428052,375,NET,Easy Mix Ltd,01403L
Gloucester City Council,23UE,Client Revs & Bens Contract,RT240,Bailiffs Fees,5368,VAT only invoice,04/01/2017,427990,0,NET,Bristow & Sutor,05450M
Gloucester City Council,23UE,Countryside Unit,LP201,Contract Cleaning,3620,Ranger Centre cleaning,04/01/2017,428074,130,NET,Cv Fisher Cleaning Services,14907C
Gloucester City Council,23UE,Docks Complex - Telephones,RB120,Telephones And Fax,5410,Call Charges October 2016,04/01/2017,427344,3960.81,NET,Gamma Business Communications,10260A
Gloucester City Council,23UE,Docks Complex - Telephones,RB120,Telephones And Fax,5410,Call Charges October 2016,04/01/2017,427369,2970.5,NET,Gamma Business Communications,10260A
Gloucester City Council,23UE,Docks Complex - Telephones,RB120,Telephones And Fax,5410,DEC16 fees & call chares to 30/11/16,04/01/2017,427567,2757.79,NET,Gamma Business Communications,10260A
Gloucester City Council,23UE,Docks Complex - Telephones,RB120,Telephones And Fax,5410,DEC16 leased line & fees NOV16 calls,04/01/2017,427557,3960.81,NET,Gamma Business Communications,10260A
Gloucester City Council,23UE,Guildhall Lettings,LA400,Artists Fees,5355,Client Sessions November 2016,04/01/2017,428049,40,NET,Gloucestershire Music Makers,13755L
Gloucester City Council,23UE,Guildhall Lettings,LA400,Sale Of Goods And Services,9230,Client Sessions November 2016,04/01/2017,428049,-8,NET,Gloucestershire Music Makers,13755L
Gloucester City Council,23UE,Homelessness Prevention,CH122,Basic Pay - Temporary Staff,2751,temporary staff w/e 23/12/16,04/01/2017,428001,387.9,NET,One To One Recruitment,04752H
Gloucester City Council,23UE,REDACTED,REDACTED,REDACTED,REDACTED,REDACTED,04/01/2017,REDACTED,21,NET,REDACTED,REDACTED
Gloucester City Council,23UE,Retail Market - Landlord,HM300,Window Cleaning,3610,DEC16 markets window cleaning,04/01/2017,427977,140,NET,Cornwall Cleaning Services,14050A
Gloucester City Council,23UE,The Arbor,HC501,Catering Provisions -Food,5110,Food,04/01/2017,428056,283.2,NET,Bidvest Foodservice (3663),55585U
Gloucester City Council,23UE,The Arbor,HC501,Catering Provisions -Liquor,5111,Drinks,04/01/2017,428057,128.45,NET,Cellar Supplies Cheltenham Ltd,01563L
Gloucester City Council,23UE,Tic Theatre Ticket Sales,LT107,Materials For Sale,5080,2016 CHRISTMAS CELEBRATION,04/01/2017,428092,2625,NET,Bbc Radio Gloucestershire,14597V
Gloucester City Council,23UE,Tic Theatre Ticket Sales,LT107,Materials For Sale,5080,AVO REX SALES 17/12/16,04/01/2017,428091,195,NET,Saint Cecilia Singers,57588T
Gloucester City Council,23UE,Tic Theatre Ticket Sales,LT107,Materials For Sale,5080,CINDERELLA SALES DEC16,04/01/2017,428093,6336,NET,Tyger Productions,14645K
Gloucester City Council,23UE,Tic Theatre Ticket Sales,LT107,Other Minor Income,9900,2016 CHRISTMAS CELEBRATION,04/01/2017,428092,-37.5,NET,Bbc Radio Gloucestershire,14597V
Gloucester City Council,23UE,Tic Theatre Ticket Sales,LT107,Other Minor Income,9900,CINDERELLA SALES DEC16,04/01/2017,428093,-56,NET,Tyger Productions,14645K
Gloucester City Council,23UE,Tic Theatre Ticket Sales,LT107,Sale Of Goods And Services,9230,2016 CHRISTMAS CELEBRATION,04/01/2017,428092,-218.75,NET,Bbc Radio Gloucestershire,14597V
Gloucester City Council,23UE,Tic Theatre Ticket Sales,LT107,Sale Of Goods And Services,9230,AVO REX SALES 17/12/16,04/01/2017,428091,-8.13,NET,Saint Cecilia Singers,57588T
Gloucester City Council,23UE,Tic Theatre Ticket Sales,LT107,Sale Of Goods And Services,9230,CINDERELLA SALES DEC16,04/01/2017,428093,-528,NET,Tyger Productions,14645K
Gloucester City Council,23UE,Business Transformation & Tech,RT700,Computer Hardware <5000,5420,Various Items,05/01/2017,426339,1339,NET,Dell Computers Corporation Ltd,55920C
Gloucester City Council,23UE,Business Transformation & Tech,RT700,Licences,5703,GFI archiver mailboxes,05/01/2017,426702,1938,NET,Pnltools Ltd,08345R
Gloucester City Council,23UE,Contact Centre,RB300,Stationery,5302,Paper,05/01/2017,428061,440,NET,Banner,17243G
Gloucester City Council,23UE,Development Management,PT200,Advertising And Publicity,5702,adverts 22/12/16,05/01/2017,427989,146.08,NET,Local World Ltd,08556P
Gloucester City Council,23UE,REDACTED,REDACTED,REDACTED,REDACTED,REDACTED,05/01/2017,REDACTED,190,NET,REDACTED,REDACTED
Gloucester City Council,23UE,Docks Complex - Services,RB100,Hire Of Equipment,5020,JAN-APR17 Sanipod rental N Warehouse,05/01/2017,427565,48.75,NET,Wessex Products (Leasing) Ltd,03684C
Gloucester City Council,23UE,Financial Services,RT200,Basic Pay - Temporary Staff,2751,temporary staff V Miller w/e 9/12/16,05/01/2017,427995,437,NET,Robert Half Ltd,03959K
Gloucester City Council,23UE,REDACTED,REDACTED,REDACTED,REDACTED,REDACTED,05/01/2017,REDACTED,44,NET,REDACTED,REDACTED
Gloucester City Council,23UE,Grants To Voluntary Sector,FG100,Grants To Advice Centres,7100,grant,05/01/2017,428115,320,NET,Quedgeley Library And Childrens Centre,17307P
Gloucester City Council,23UE,Grants To Voluntary Sector,FG100,Grants To Advice Centres,7100,grant,05/01/2017,428116,326.37,NET,Saint James Chatterbox/Chitchat Outreach Grp,17305K
Gloucester City Council,23UE,Grants To Voluntary Sector,FG100,Grants To Advice Centres,7100,grant,05/01/2017,428119,200,NET,Chillingworth Mews Residents Group,16490W
Gloucester City Council,23UE,Grants To Voluntary Sector,FG100,Members Allocation Fund,7100F,grant,05/01/2017,428118,500,NET,Q Club Quedgeley,17303P
Gloucester City Council,23UE,Grants To Voluntary Sector,FG100,Members Allocation Fund,7100F,grant,05/01/2017,428120,304.24,NET,Little Explorers Nursery,17302S
Gloucester City Council,23UE,Grants To Voluntary Sector,FG100,Members Allocation Fund,7100F,grant,05/01/2017,428122,500,NET,Together In Matson,53760RV
Gloucester City Council,23UE,REDACTED,REDACTED,REDACTED,REDACTED,REDACTED,05/01/2017,REDACTED,568,NET,REDACTED,REDACTED
Gloucester City Council,23UE,Hackney Carriages,HL100,Fees For Services Received,5350,DBS November 2016,05/01/2017,427317,440,NET,Disclosure And Barring Service,00119W
Gloucester City Council,23UE,Housing Works In Default,HD500,Clearance And Cleansing Fees,5384,Avebury Close Clearance works,05/01/2017,427057,1150,NET,Rj Contracting (Environmental) Ltd,07429H
Gloucester City Council,23UE,Investment Property,RB500,General Repair/Maint Buildings,3000,Roof Gulleys,05/01/2017,427822,300,NET,Three Counties Drain Service,44033V
Gloucester City Council,23UE,Kings Quarter Masterplanning,RY173,Contract Payments,0020,Kings Walk lease restructure works,05/01/2017,427981,9750,CAP,Gva Grimley,56359W
Gloucester City Council,23UE,Kings Quarter Masterplanning,RY173,Contract Payments,0020,Lease restructure works re Kings Walk,05/01/2017,427980,15250,CAP,Gva Grimley,56359W
Gloucester City Council,23UE,REDACTED,REDACTED,REDACTED,REDACTED,REDACTED,05/01/2017,REDACTED,89.5,NET,REDACTED,REDACTED
Gloucester City Council,23UE,Pollution Control,HE300,Fees For Services Received,5350,Weston Road- fly tipping removal,05/01/2017,426108,100,NET,Rj Contracting (Environmental) Ltd,07429H
Gloucester City Council,23UE,Registration Of Electors,RS400,Printing,5300,December IER Mailings,05/01/2017,428060,551.3,NET,Alpha Response Print & Mail Ltd,03029U
Gloucester City Council,23UE,Registration Of Electors,RS400,Printing,5300,July IER Mailings,05/01/2017,422077,176.9,NET,Alpha Response Print & Mail Ltd,03029U
Gloucester City Council,23UE,The Arbor,HC501,Catering Provisions -Food,5110,Food,05/01/2017,428058,23.25,NET,Total Produce Gloucester,12645E
Gloucester City Council,23UE,The Arbor,HC501,Catering Provisions -Food,5110,Food,05/01/2017,428059,33.77,NET,Total Produce Gloucester,12645E
Gloucester City Council,23UE,Business Transformation & Tech,RT700,Computer Hardware <5000,5420,Lattitude E6540,06/01/2017,427997,739.2,NET,Dell Computers Corporation Ltd,55920C
Gloucester City Council,23UE,Business Transformation & Tech,RT700,Computer Hardware <5000,5420,PLX Encorepro HW720,06/01/2017,427999,108.75,NET,Rocom,56066R
Gloucester City Council,23UE,City Museum Catering,LM202,Catering Provisions -Food,5110,Fruit & Veg,06/01/2017,428073,53.92,NET,Woody's Fruit & Veg,11798L
Gloucester City Council,23UE,Civica Contract Revs & Bens,RT250,Fees For Services Received,5350,NI Charges Oct - Dec 2016,06/01/2017,428069,4976.44,NET,Civica Uk Ltd,10841X
Gloucester City Council,23UE,Contact Centre,RB300,Stationery,5302,Pens,06/01/2017,428066,6.47,NET,Banner,17243G
Gloucester City Council,23UE,Contaminated Land,HE301,Fees For Services Received,5350,Contaminated Land Oct 16,06/01/2017,428075,2764.72,NET,Bromsgrove District Council,15037G
Gloucester City Council,23UE,Docks Complex - Services,RB100,Catering Provisions -Food,5110,Milk,06/01/2017,428078,12.28,NET,Total Produce Gloucester,12645E
Gloucester City Council,23UE,Docks Complex - Services,RB100,Catering Provisions -Food,5110,Milk,06/01/2017,428079,12.28,NET,Total Produce Gloucester,12645E
Gloucester City Council,23UE,Docks Complex - Services,RB100,Catering Provisions -Food,5110,Milk,06/01/2017,428080,16.13,NET,Total Produce Gloucester,12645E
Gloucester City Council,23UE,Docks Complex - Services,RB100,Catering Provisions -Food,5110,Milk,06/01/2017,428081,3.57,NET,Total Produce Gloucester,12645E
Gloucester City Council,23UE,Docks Complex - Telephones,RB120,Mobile Phones,5409,acct 5500385 business data fees,06/01/2017,427555,332.63,NET,O2 Uk,16206Y
Gloucester City Council,23UE,Docks Complex - Telephones,RB120,Mobile Phones,5409,acct 5500385 business data fees,06/01/2017,427568,1026.45,NET,O2 Uk,16206Y
Gloucester City Council,23UE,Grants To Voluntary Sector,FG100,Members Allocation Fund,7100F,grant,06/01/2017,428117,500,NET,Kingsway Primary School,12441Z
Gloucester City Council,23UE,Homelessness,CH120,Removal And Storage Fees,5513,Storage  November 16,06/01/2017,428072,18,NET,Advanced Removals & Storage Ltd,57142R
Gloucester City Council,23UE,Nms Contract,HI102,Fees For Services Received,5350,Kerbside Box,06/01/2017,428062,3598.54,NET,Straight Plc,50537E
Gloucester City Council,23UE,Planning Policy & Heritage,PT300,Fees For Services Received,5350,Site Visits,06/01/2017,426427,336,NET,Environment Agency,17309B
Gloucester City Council,23UE,Pollution Control,HE300,Fees For Services Received,5350,Pollution Prevention Oct 2016,06/01/2017,428076,1307.54,NET,Bromsgrove District Council,15037G
Gloucester City Council,23UE,Townscape Heritage Initiative,LY145,Contract Payments,0020,Scans,06/01/2017,428068,248,CAP,English Heritage,08249C
Gloucester City Council,23UE,Docks Complex - Catering Servs,RB110,Catering Provisions -Food,5110,Milk,09/01/2017,428240,16.75,NET,Total Produce Gloucester,12645E
Gloucester City Council,23UE,Docks Complex - Catering Servs,RB110,Catering Provisions -Food,5110,Milk,09/01/2017,428241,12.18,NET,Total Produce Gloucester,12645E
Gloucester City Council,23UE,Docks Complex - Catering Servs,RB110,Catering Provisions -Food,5110,Milk,09/01/2017,428242,16.93,NET,Total Produce Gloucester,12645E
Gloucester City Council,23UE,Docks Complex - Catering Servs,RB110,Catering Provisions -Food,5110,Milk,09/01/2017,428243,12.18,NET,Total Produce Gloucester,12645E
Gloucester City Council,23UE,Docks Complex - Catering Servs,RB110,Catering Provisions -Food,5110,Milk,09/01/2017,428244,16.75,NET,Total Produce Gloucester,12645E
Gloucester City Council,23UE,Docks Complex - Catering Servs,RB110,Catering Provisions -Food,5110,Milk,09/01/2017,428245,12.18,NET,Total Produce Gloucester,12645E
Gloucester City Council,23UE,Docks Complex - Catering Servs,RB110,Catering Provisions -Food,5110,Milk,09/01/2017,428246,16.75,NET,Total Produce Gloucester,12645E
Gloucester City Council,23UE,Docks Complex - Services,RB100,Service Charges,3020,HKP service charge JAN-MAR2017,09/01/2017,427889,13847,NET,Gloucester Quays Management Ltd,13497K
Gloucester City Council,23UE,Financial Services,RT200,Basic Pay - Temporary Staff,2751,temporary staff w/e 16/12/16,09/01/2017,427996,851,NET,Robert Half Ltd,03959K
Gloucester City Council,23UE,REDACTED,REDACTED,REDACTED,REDACTED,REDACTED,09/01/2017,REDACTED,1705,NET,REDACTED,REDACTED
Gloucester City Council,23UE,Kings Quarter,RY146,Contract Payments,0020,Kings Quarter,09/01/2017,428067,2399.12,CAP,Western Power Distribution,12791S
Gloucester City Council,23UE,Museum Phase 2 Hlf,GY001,Contract Payments,0020,City Museum roof survey,09/01/2017,427867,365,CAP,Gloucester Asbestos Ltd,00496K
Gloucester City Council,23UE,Southgate Moorings,RB537,Service Charges,3020,Southgate car park service charge,09/01/2017,427890,3000,NET,Gloucester Quays Management Ltd,13497K
Gloucester City Council,23UE,Statutory Testing,RS310,Fire Fighting Equipment,3008,North Warehouse fire extinguishers,09/01/2017,427501,45,NET,Allcoopers Ltd,52921E
Gloucester City Council,23UE,The Arbor,HC501,Catering Provisions -Food,5110,Food,09/01/2017,428237,38.47,NET,Total Produce Gloucester,12645E
Gloucester City Council,23UE,The Arbor,HC501,Catering Provisions -Food,5110,Food,09/01/2017,428238,69.6,NET,Total Produce Gloucester,12645E
Gloucester City Council,23UE,The Arbor,HC501,Catering Provisions -Food,5110,Food,09/01/2017,428239,50.95,NET,Total Produce Gloucester,12645E
Gloucester City Council,23UE,The Arbor,HC501,Catering Provisions -Food,5110,Food,09/01/2017,428256,336.33,NET,Bidvest Foodservice (3663),55585U
Gloucester City Council,23UE,The Arbor,HC501,Catering Provisions -Food,5110,Food,09/01/2017,428262,167.63,NET,Bidvest Foodservice (3663),55585U
Gloucester City Council,23UE,The Arbor,HC501,Catering Provisions -Food,5110,Food,09/01/2017,428263,468.19,NET,Bidvest Foodservice (3663),55585U
Gloucester City Council,23UE,The Fleece,RB530,General Repair/Maint Buildings,3000,Fleece Hotel works,09/01/2017,428264,687.5,NET,Mca Consulting Engineers Ltd,17289F
Gloucester City Council,23UE,Tree Planting Grant Funded,LY150,Contract Payments,0020,trees,09/01/2017,427527,286.25,CAP,Mount Pleasant Trees,51352K
Gloucester City Council,23UE,REDACTED,REDACTED,REDACTED,REDACTED,REDACTED,10/01/2017,REDACTED,225,NET,REDACTED,REDACTED
Gloucester City Council,23UE,Homelessness,CH120,Board And Lodging,5515,various tenants,10/01/2017,428289,5208.49,NET,James Legge Property (Ltd),07844R
Gloucester City Council,23UE,Homelessness,CH120,Board And Lodging,5515,various tenants,10/01/2017,428274,3768.17,NET,Kalmwood Ltd,08568G
Gloucester City Council,23UE,Homelessness,CH120,Board And Lodging,5515,various tenants,10/01/2017,428288,7755.84,NET,REDACTED,REDACTED
Gloucester City Council,23UE,Homelessness,CH120,Board And Lodging,5515,various tenants,10/01/2017,428287,7332.05,NET,Dorchester Guest House,12298D
Gloucester City Council,23UE,Homelessness,CH120,Board And Lodging,5515,various tenants,10/01/2017,428273,4773.1,NET,Carbrey Housing Ltd,11098G
Gloucester City Council,23UE,REDACTED,REDACTED,REDACTED,REDACTED,REDACTED,10/01/2017,REDACTED,5724.3,NET,REDACTED,REDACTED
Gloucester City Council,23UE,REDACTED,REDACTED,REDACTED,REDACTED,REDACTED,10/01/2017,REDACTED,440.96,NET,REDACTED,REDACTED
Gloucester City Council,23UE,REDACTED,REDACTED,REDACTED,REDACTED,REDACTED,10/01/2017,REDACTED,280.86,NET,REDACTED,REDACTED
Gloucester City Council,23UE,REDACTED,REDACTED,REDACTED,REDACTED,REDACTED,10/01/2017,REDACTED,3126.2,NET,REDACTED,REDACTED
Gloucester City Council,23UE,REDACTED,REDACTED,REDACTED,REDACTED,REDACTED,10/01/2017,REDACTED,272.72,NET,REDACTED,REDACTED
Gloucester City Council,23UE,REDACTED,REDACTED,REDACTED,REDACTED,REDACTED,10/01/2017,REDACTED,530,NET,REDACTED,REDACTED
Gloucester City Council,23UE,Housing Works In Default,HD500,Clearance And Cleansing Fees,5384,Hopewell St clearance works,10/01/2017,426073,1200,NET,Rj Contracting (Environmental) Ltd,07429H
Gloucester City Council,23UE,Investment Property,RB500,General Repair/Maint Buildings,3000,Application December 2016,10/01/2017,428170,20428.19,NET,Rf Gardiner Limited,12299B
Gloucester City Council,23UE,REDACTED,REDACTED,REDACTED,REDACTED,REDACTED,10/01/2017,REDACTED,21,NET,REDACTED,REDACTED
Gloucester City Council,23UE,Museum Phase 2 Hlf,GY001,Contract Payments,0020,Check Roof Space 24/11/16,10/01/2017,428090,75,CAP,Gooch Group Limited,05169F
Gloucester City Council,23UE,REDACTED,REDACTED,REDACTED,REDACTED,REDACTED,10/01/2017,REDACTED,35,NET,REDACTED,REDACTED
Gloucester City Council,23UE,Aspire Admin Charges,LC105,Fees For Services Received,5350,December 2016 Staff Contributions,11/01/2017,428055,435,NET,Aspire Sports & Cultural Trust,08135V
Gloucester City Council,23UE,Blackfriars,LA609,Security Services Fees,5351,Door Staff for events,11/01/2017,428258,375,NET,Nsgl Ltd,15246Y
Gloucester City Council,23UE,Client Revs & Bens Contract,RT240,Bailiffs Fees,5368,VAT due on statutory fees,11/01/2017,428165,0,NET,Bristow & Sutor,05450M
Gloucester City Council,23UE,Client Revs & Bens Contract,RT240,Subscriptions,5600,Membership 16/17,11/01/2017,416156,1000,NET,Tameside Mbc,57810S
Gloucester City Council,23UE,Contact Centre,RB300,Basic Pay - Temporary Staff,2751,Temporary Staff w/e 30/12/16,11/01/2017,428235,204.16,NET,One To One Recruitment,04752H
Gloucester City Council,23UE,Countryside Unit,LP201,Vet Fees,5842,Various Items,11/01/2017,428169,191.43,NET,Wood Veterinary Group,48892V
Gloucester City Council,23UE,Docks Complex - Services,RB100,Catering Provisions -Food,5110,Milk,11/01/2017,428255,12.28,NET,Total Produce Gloucester,12645E
Gloucester City Council,23UE,Financial Services,RT200,Fees For Services Received,5350,VAT Only Invoice,11/01/2017,428077,0,NET,Bruton Knowles,57534T
Gloucester City Council,23UE,Financial Services,RT200,Vocational Training,2970,Exam Fees 14/02/17,11/01/2017,428178,78,NET,Pitman Training Worcester,16384W
Gloucester City Council,23UE,Folk Museum,LM210,Security Services Fees,5351,life museum APR16-APR17,11/01/2017,426568,315.19,NET,Chubb Fire & Security Ltd,54582K
Gloucester City Council,23UE,Guildhall Bar And Caf�,LA210,Catering Provisions -Food,5110,food,11/01/2017,427870,69.1,NET,Janes Pantry,24500W
Gloucester City Council,23UE,Guildhall Events,LA200,Security Services Fees,5351,Door Staff for events,11/01/2017,428258,615,NET,Nsgl Ltd,15246Y
Gloucester City Council,23UE,REDACTED,REDACTED,REDACTED,REDACTED,REDACTED,11/01/2017,REDACTED,159.2,NET,REDACTED,REDACTED
Gloucester City Council,23UE,Off Street Car Parks,PP110,Rents,3200,Rent Dec 16 - Mar 17,11/01/2017,428070,600,NET,Boots The Chemist,04540V
Gloucester City Council,23UE,Printing,RP103,Printing,5300,Print Room Sales December 2016,11/01/2017,428177,237.56,NET,Alpha Colour Printers Ltd,00945B
Gloucester City Council,23UE,The Arbor,HC501,Catering Provisions -Food,5110,Food,11/01/2017,428247,13.29,NET,Total Produce Gloucester,12645E
Gloucester City Council,23UE,The Arbor,HC501,Catering Provisions -Food,5110,Food,11/01/2017,428248,23,NET,Total Produce Gloucester,12645E
Gloucester City Council,23UE,The Arbor,HC501,Catering Provisions -Food,5110,Food,11/01/2017,428249,86.8,NET,Total Produce Gloucester,12645E
Gloucester City Council,23UE,The Arbor,HC501,Catering Provisions -Food,5110,Food,11/01/2017,428250,51.72,NET,Total Produce Gloucester,12645E
Gloucester City Council,23UE,The Arbor,HC501,Catering Provisions -Food,5110,Food,11/01/2017,428251,10.54,NET,Total Produce Gloucester,12645E
Gloucester City Council,23UE,The Arbor,HC501,Catering Provisions -Food,5110,Food,11/01/2017,428252,108.54,NET,Bidvest Foodservice (3663),55585U
Gloucester City Council,23UE,The Arbor,HC501,Catering Provisions -Food,5110,Food,11/01/2017,428253,12.71,NET,Total Produce Gloucester,12645E
Gloucester City Council,23UE,The Arbor,HC501,Catering Provisions -Food,5110,Food,11/01/2017,428254,62.56,NET,Total Produce Gloucester,12645E
Gloucester City Council,23UE,Vehicles,RS140,Fuel,4012,Fuel,11/01/2017,428232,673.06,NET,Allstar Business Solutions Ltd (Arval),06594A
Gloucester City Council,23UE,Client Revs & Bens Contract,RT240,Bailiffs Fees,5368,VAT due on statutory fees,12/01/2017,428164,0,NET,Bristow & Sutor,05450M
Gloucester City Council,23UE,Folk Museum,LM210,Security Services Fees,5351,Charges Oct 16 - Jan 17,12/01/2017,422666,315.22,NET,Chubb Fire & Security Ltd,54582K
Gloucester City Council,23UE,Hackney Carriages,HL100,Fees For Services Received,5350,DVLA Electronic Check,12/01/2017,427351,29,NET,Intelligent Data Systems (Uk) Ltd,11067G
Gloucester City Council,23UE,Investment Property,RB500,Consultants Fees,5349,MANAGEMENT SERVICES JUL-SEP16,12/01/2017,425639,340.13,NET,Alder King,02367D
Gloucester City Council,23UE,Investment Property,RB500,Consultants Fees,5349,MANAGEMENT SERVICES JUL-SEP16,12/01/2017,425640,356.06,NET,Alder King,02367D
Gloucester City Council,23UE,Investment Property,RB500,Consultants Fees,5349,MANAGEMENT SERVICES JUL-SEP16,12/01/2017,425641,137.5,NET,Alder King,02367D
Gloucester City Council,23UE,Investment Property,RB500,Service Charges,3020,Grosvenor House- Dec16,12/01/2017,427191,182.1,NET,Alder King,02367D
Gloucester City Council,23UE,Investment Property,RB500,Service Charges,3020,Grosvenor House - Dec16 - Mar17,12/01/2017,427205,338.25,NET,Alder King,02367D
Gloucester City Council,23UE,Investment Property,RB500,Service Charges,3020,Grosvenor House Dec16- Mar17,12/01/2017,427190,194,NET,Alder King,02367D
Gloucester City Council,23UE,Investment Property,RB500,Service Charges,3020,"Grosvenor House, Dec 16- Mar 17",12/01/2017,427189,316.75,NET,Alder King,02367D
Gloucester City Council,23UE,Investment Property,RB500,Service Charges,3020,Kings Quarter - Dec 16- Mar17,12/01/2017,427206,3876.25,NET,Alder King,02367D
Gloucester City Council,23UE,Investment Property,RB500,Service Charges,3020,Kings Quarter Dec16 - Mar17,12/01/2017,427208,2655,NET,Alder King,02367D
Gloucester City Council,23UE,Nms Contract,HI102,Contracted Services,6970,December 16 Commodity top up,12/01/2017,428211,25856,NET,Enterprise (Aol) Ltd,06695G
Gloucester City Council,23UE,Nms Contract,HI102,Contracted Services,6970,January 17 Service Fees,12/01/2017,428212,478446.3,NET,Enterprise (Aol) Ltd,06695G
Gloucester City Council,23UE,Aspire Admin Charges,LC105,Contracted Services,6970,Monthly Charge January 2017,13/01/2017,428190,38125.58,NET,Aspire Sports & Cultural Trust,08135V
Gloucester City Council,23UE,Celebratory Lights,LT302,Christmas Lights,5024,Christmas Trees,13/01/2017,428084,3685,NET,Real Christmas Trees Ltd,11015G
Gloucester City Council,23UE,Civica Contract Revs & Bens,RT250,Fees For Services Received,5350,Revenues & Benefits Service Feb 2017,13/01/2017,428218,137797,NET,Civica Uk Ltd,10841X
Gloucester City Council,23UE,Civica Fod Contract,RT260,Contracted Services,6970,Year 5 Q1 - 01/01/17 - 31/03/17,13/01/2017,428188,187546.75,NET,Civica Uk Ltd,10841X
Gloucester City Council,23UE,Community Safety Projects,FP500,Hospitality,5122,Meeting Room Hire,13/01/2017,428224,29.6,NET,Aspire Sports & Cultural Trust,08135V
Gloucester City Council,23UE,Contact Centre,RB300,Stationery,5302,Banners,13/01/2017,428216,114.16,NET,Banner,17243G
Gloucester City Council,23UE,Crematorium,HC200,Memorial Plaques,5053,Plaques,13/01/2017,428183,220,NET,Steel & Stone (York),57204U
Gloucester City Council,23UE,Crematorium,HC200,Memorial Plaques,5053,Plaques,13/01/2017,428184,190,NET,Steel & Stone (York),57204U
Gloucester City Council,23UE,Crematorium,HC200,Memorial Plaques,5053,Plaques,13/01/2017,428186,220,NET,Steel & Stone (York),57204U
Gloucester City Council,23UE,Crematorium,HC200,Operational Equipment <5000,5012,Vertical Blind,13/01/2017,428226,223.34,NET,Interior Needs,12578U
Gloucester City Council,23UE,Development Management,PT200,Fees For Services Received,5350,Winneycroft Lane Appeal,13/01/2017,428199,6715,NET,Parkwood Consultancy Services,17173C
Gloucester City Council,23UE,Development Management,PT200,Fees For Services Received,5350,Works November 2016,13/01/2017,428198,200,NET,Dpds Ltd,05404V
Gloucester City Council,23UE,Health And Safety,HD300,Hospitality,5122,Meeting Room Hire,13/01/2017,428222,39.6,NET,Aspire Sports & Cultural Trust,08135V
Gloucester City Council,23UE,Housing Works In Default,HD500,Clearance And Cleansing Fees,5384,Cecil Road clearance works,13/01/2017,425161,632.36,NET,Rf Gardiner Limited,12299B
Gloucester City Council,23UE,Housing Works In Default,HD500,Clearance And Cleansing Fees,5384,Replacements,13/01/2017,425291,509.06,NET,Rf Gardiner Limited,12299B
Gloucester City Council,23UE,Investment Property,RB500,Gas Fittings Serv/Repair,3052,Reception - Install controllers,13/01/2017,426436,961.08,NET,Rf Gardiner Limited,12299B
Gloucester City Council,23UE,Investment Property,RB500,General Repair/Maint Buildings,3000,Minor Works Contract,13/01/2017,426020,260.2,NET,Riba Enterprises,09988U
Gloucester City Council,23UE,Investment Property,RB500,Service Charges,3020,Bruton Way Sep - Dec 2016,13/01/2017,423496,3876.25,NET,Alder King,15830U
Gloucester City Council,23UE,Investment Property,RB500,Service Charges,3020,Grosvenor House,13/01/2017,422665,6256.29,NET,Alder King,15830U
Gloucester City Council,23UE,Investment Property,RB500,Service Charges,3020,Grosvenor House Dec16 - Mar17,13/01/2017,427813,3108.5,NET,Alder King,15830U
Gloucester City Council,23UE,Investment Property,RB500,Service Charges,3020,Grosvenor House Sep - Dec 2016,13/01/2017,423494,338.25,NET,Alder King,15830U
Gloucester City Council,23UE,Investment Property,RB500,Service Charges,3020,Grosvenor House Sep - Dec 2016,13/01/2017,423497,3108.5,NET,Alder King,15830U
Gloucester City Council,23UE,Investment Property,RB500,Service Charges,3020,Kings Quarter - Sep - Dec 2016,13/01/2017,423493,2624.25,NET,Alder King,15830U
Gloucester City Council,23UE,Investment Property,RB500,Service Charges,3020,Kings Quarter Sep - Dec 2016,13/01/2017,423495,2655,NET,Alder King,15830U
Gloucester City Council,23UE,Investment Property,RB500,Service Charges,3020,Rent,13/01/2017,419362,3501.25,NET,Alder King,15830U
Gloucester City Council,23UE,Investment Property,RB500,Service Charges,3020,S/C on account,13/01/2017,416521,3108.5,NET,Alder King,15830U
Gloucester City Council,23UE,Investment Property,RB500,Service Charges,3020,Unit 1A Grosvenor House Sep - Dec 16,13/01/2017,423499,2373.75,NET,Alder King,15830U
Gloucester City Council,23UE,Investment Property,RB500,Service Charges,3020,Unit 8 Grosvenor House Sep - Dec 16,13/01/2017,423500,194,NET,Alder King,15830U
Gloucester City Council,23UE,Investment Property,RB500,Service Charges,3020,Unit 9 Grosvenor House Sep - Dec 16,13/01/2017,423501,316.75,NET,Alder King,15830U
Gloucester City Council,23UE,Printing,RP103,Printing,5300,Printing,13/01/2017,428225,455.6,NET,Alpha Colour Printers Ltd,00945B
Gloucester City Council,23UE,Registration Of Electors,RS400,Publications,5060,Schofields Election Law,13/01/2017,428223,187,NET,Thomson Reuters,43110M
Gloucester City Council,23UE,Retail Market - Landlord,HM300,Trade Refuse Collection,3630,1100 Bins,13/01/2017,427315,375.57,NET,Enterprise (Aol) Ltd,06695G
Gloucester City Council,23UE,Retail Market - Landlord,HM300,Trade Refuse Collection,3630,Waste December 2016,13/01/2017,428213,150,NET,B & S Pointon Ltd,06253G
Gloucester City Council,23UE,The Arbor,HC501,Catering Provisions -Liquor,5111,Drinks,13/01/2017,428227,207.33,NET,Cellar Supplies Cheltenham Ltd,01563L
Gloucester City Council,23UE,The Fleece,RB530,General Repair/Maint Buildings,3000,STANDARD UNIT WITH COLD WASH,13/01/2017,425912,168,NET,Abbey Loos Limited,10787B
Gloucester City Council,23UE,Tic Trading,LT110,Materials For Sale,5080,Keys,13/01/2017,428215,183.5,NET,N & C Building Products Ltd,02054E
Gloucester City Council,23UE,Tourism Marketing,LT100,Other Minor Supplies Services,5590,Disposal Units,13/01/2017,428182,38.76,NET,Ocs Group Uk Limited T/A Cannon,06506A
Gloucester City Council,23UE,Townscape Heritage Initiative,LY145,Contract Payments,0020,A Meredith,13/01/2017,428197,240,CAP,Kingsholm C Of E Primary School,59749Y
Gloucester City Council,23UE,Crematorium,HC200,National Assist Act Burial Exp,5593,Parliament Street works,16/01/2017,428185,150,NET,Rj Contracting (Environmental) Ltd,07429H
Gloucester City Council,23UE,Vehicles,RS140,Routine R And M - Vehicles,4011,7.5 Ton Plant Truck,16/01/2017,428187,105,NET,Ken Pink Plant Hire Ltd,56884V
Gloucester City Council,23UE,Allotments,HI104,Fees For Services Received,5350,Estcourt Park allotment gate works,17/01/2017,427533,395,NET,Greenfields Garden Services Ltd,48130G
Gloucester City Council,23UE,Asbru - Other Funders,FP846,Other Minor Supplies Services,5590,Best Bar none plaques 2016/17,17/01/2017,428457,297.25,NET,Severn Signs Ltd,49841D
Gloucester City Council,23UE,Asset Management,RS300,Basic Pay - Temporary Staff,2751,consultancy fees DEC16,17/01/2017,428454,5725,NET,Ardley Associates,09369F
Gloucester City Council,23UE,Asset Management,RS300,General Repair/Maint Buildings,3000,Repairs to door,17/01/2017,426381,200,NET,Pro Door Ltd,04760C
Gloucester City Council,23UE,Blackfriars,LA609,Catering Provisions -Liquor,5111,drinks for resale,17/01/2017,428429,520.48,NET,Cellar Supplies Cheltenham Ltd,01563L
Gloucester City Council,23UE,Blackfriars Weddings,LA220,Catering Provisions -Liquor,5111,drinks for resale,17/01/2017,428428,241.46,NET,Cellar Supplies Cheltenham Ltd,01563L
Gloucester City Council,23UE,Business Transformation & Tech,RT700,Internet Service Provider Fees,5429,Charges Dec16 - Jan17,17/01/2017,427837,125.82,NET,Virgin Media Business,01869B
Gloucester City Council,23UE,Business Transformation & Tech,RT700,Internet Service Provider Fees,5429,Charges Jul 16- Apr 17,17/01/2017,427374,640.89,NET,Virgin Media Business,01869B
Gloucester City Council,23UE,City Museum And Art Gallery,LM200,Publications For Sale,5064,Framed Cat Drawing Sale,17/01/2017,428436,49.5,NET,REDACTED,REDACTED
Gloucester City Council,23UE,City Museum And Art Gallery,LM200,Security Services Fees,5351,annual rental Jan-Dec 2017,17/01/2017,428500,1043.59,NET,Secom Plc,51471A
Gloucester City Council,23UE,Client Revs & Bens Contract,RT240,Bailiffs Fees,5368,Recharge for Dukes direct payment,17/01/2017,428231,5989.31,NET,Civica Uk Ltd,10841X
Gloucester City Council,23UE,Contact Centre,RB300,Publications,5060,December News,17/01/2017,428180,139.75,NET,Ymk Supermarket,55281U
Gloucester City Council,23UE,Council Streetcare Team,HI101,Maint Of Grounds - General,3030,Bird Seed,17/01/2017,428493,62.35,NET,Angell Pets Ltd,15773P
Gloucester City Council,23UE,Council Streetcare Team,HI101,Window Cleaning,3610,Dec16 Eastfgate Chamber windows,17/01/2017,428453,130,NET,Poles Apart Window Cleaning,11636R
Gloucester City Council,23UE,Crematorium,HC200,Book Of Memory,5055,site visit to inscribe memorial,17/01/2017,428448,20.2,NET,Hilton Cabinet Co Ltd,21910A
Gloucester City Council,23UE,Crematorium,HC200,Oper Leases - Equipment,5029,2 drawer filer,17/01/2017,428433,84,NET,Furniture@Work Ltd,01124U
Gloucester City Council,23UE,Crematorium,HC200,Repair/Maint Of Fixed Plant,3006,Engineer visit 25/11/16,17/01/2017,427839,577.26,NET,Facultatieve Technologies Ltd,51210H
Gloucester City Council,23UE,Crematorium,HC200,Repair/Maint Of Monuments,3004,memorial repairs,17/01/2017,428435,400,NET,F J Cambridge & Co Ltd,48841N
Gloucester City Council,23UE,Development Management,PT200,Basic Pay - Temporary Staff,2751,temporary staff w/e 19/12/2016,17/01/2017,428175,1701.05,NET,The Oyster Partnership Limited,14900T
Gloucester City Council,23UE,Development Management,PT200,Basic Pay - Temporary Staff,2751,temporary staff w/e 19/12/2016,17/01/2017,428221,1030.38,NET,The Oyster Partnership Limited,14900T
Gloucester City Council,23UE,Development Management,PT200,Basic Pay - Temporary Staff,2751,temporary staff w/e 26/12/2016,17/01/2017,428176,672.75,NET,The Oyster Partnership Limited,14900T
Gloucester City Council,23UE,Development Management,PT200,Printing,5300,various printing,17/01/2017,427553,80,NET,Gloucestershire County Council,18650D
Gloucester City Council,23UE,Docks Complex - Castlemeads Cp,RB210,Contracted Services,6970,GC variable Enforcement,17/01/2017,428203,3710.55,NET,Apcoa Parking (Uk) Ltd,09954M
Gloucester City Council,23UE,Docks Complex - Services,RB100,General Repair/Maint Buildings,3000,Repair Works on Water Chiller,17/01/2017,423963,4968.58,NET,Cooltherm,06087Z
Gloucester City Council,23UE,Docks Complex - Services,RB100,Operational Equipment <5000,5012,access cards,17/01/2017,428420,110,NET,Bannerbridge Plc,13703G
Gloucester City Council,23UE,Docks Complex - Services,RB100,Recycling,3631,Recycling,17/01/2017,427287,148.5,NET,Printwaste Recycling,57114W
Gloucester City Council,23UE,Docks Complex - Services,RB100,Recycling,3631,Recycling,17/01/2017,427304,27.5,NET,Printwaste Recycling,57114W
Gloucester City Council,23UE,Docks Complex - Services,RB100,Recycling,3631,Recycling,17/01/2017,427306,88.4,NET,Printwaste Recycling,57114W
Gloucester City Council,23UE,Emergency Planning,RO100,Printing,5300,various printing,17/01/2017,427553,111.98,NET,Gloucestershire County Council,18650D
Gloucester City Council,23UE,Financial Services,RT200,Basic Pay - Temporary Staff,2751,temporary staff w/e 23/12/16,17/01/2017,428472,356.5,NET,Robert Half Ltd,03959K
Gloucester City Council,23UE,Financial Services,RT200,Basic Pay - Temporary Staff,2751,Temporary staff w/e 30/12/16,17/01/2017,428471,345,NET,Robert Half Ltd,03959K
Gloucester City Council,23UE,Financial Services,RT200,Consultants Fees,5349,Travel Expenses,17/01/2017,428071,83.25,NET,Civica Uk Ltd,10841X
Gloucester City Council,23UE,Financial Services,RT200,Fees For Services Received,5350,Credited,17/01/2017,428513,150.03,NET,Gloucestershire County Council,18650D
Gloucester City Council,23UE,Financial Services,RT200,Publications,5060,various printing,17/01/2017,427553,234.13,NET,Gloucestershire County Council,18650D
Gloucester City Council,23UE,Folk Museum,LM210,Advertising And Publicity,5702,Events Guide June 17,17/01/2017,428163,646,NET,Paddock Print,03014H
Gloucester City Council,23UE,Folk Museum,LM210,Other Catering Provisions,5112,Tea & Coffee,17/01/2017,428166,42.61,NET,Ukv Solutions Ltd,14864V
Gloucester City Council,23UE,Folk Museum,LM210,Printing,5300,Events Guide June 17,17/01/2017,428163,646,NET,Paddock Print,03014H
Gloucester City Council,23UE,General Drainage Works,PY241,Contract Payments,0020,Project Engineer Services Nov 16,17/01/2017,428489,5416.55,CAP,Ecostep Ltd,15511Z
Gloucester City Council,23UE,General Works Fund,RY203,Consultants Fees,0030,November 2016,17/01/2017,428477,665,CAP,Graham Parker Environmental Design Solutions,16390B
Gloucester City Council,23UE,Guildhall Bar And Caf�,LA210,Catering Provisions -Food,5110,Fruti & Veg Sep & Oct 16,17/01/2017,428492,159.74,NET,Woody's Fruit & Veg,11798L
Gloucester City Council,23UE,Guildhall Bar And Caf�,LA210,Catering Provisions -Liquor,5111,drinks for reasle,17/01/2017,428425,59.99,NET,Cellar Supplies Cheltenham Ltd,01563L
Gloucester City Council,23UE,Guildhall Bar And Caf�,LA210,Catering Provisions -Liquor,5111,drinks for resale,17/01/2017,428426,716.72,NET,Cellar Supplies Cheltenham Ltd,01563L
Gloucester City Council,23UE,Guildhall Bar And Caf�,LA210,Catering Provisions -Liquor,5111,drinks for resale,17/01/2017,428427,869.83,NET,Cellar Supplies Cheltenham Ltd,01563L
Gloucester City Council,23UE,Guildhall Bar And Caf�,LA210,Catering Provisions -Liquor,5111,Gas Supply,17/01/2017,428210,35.63,NET,Boc Ltd,59172L
Gloucester City Council,23UE,Guildhall Bar And Caf�,LA210,Hire Of Equipment,5020,various goods,17/01/2017,428515,171.07,NET,Nisbets,55372P
Gloucester City Council,23UE,Guildhall Bar And Caf�,LA210,Operational Equipment <5000,5012,fridge for Blackfriars,17/01/2017,428516,314.99,NET,Nisbets,55372P
Gloucester City Council,23UE,Guildhall Cinema,LA202,Advertising And Publicity,5702,various printing,17/01/2017,427553,49.65,NET,Gloucestershire County Council,18650D
Gloucester City Council,23UE,Guildhall Cinema,LA202,Hire Of Equipment,5020,Monthly Cinema Charge,17/01/2017,428208,219.59,NET,Nft Logistics Ltd,13505N
Gloucester City Council,23UE,REDACTED,REDACTED,REDACTED,REDACTED,REDACTED,17/01/2017,REDACTED,3726.98,NET,REDACTED,REDACTED
Gloucester City Council,23UE,REDACTED,REDACTED,REDACTED,REDACTED,REDACTED,17/01/2017,REDACTED,1750,NET,REDACTED,REDACTED
Gloucester City Council,23UE,REDACTED,REDACTED,REDACTED,REDACTED,REDACTED,17/01/2017,REDACTED,180,NET,REDACTED,REDACTED
Gloucester City Council,23UE,REDACTED,REDACTED,REDACTED,REDACTED,REDACTED,17/01/2017,REDACTED,710,NET,REDACTED,REDACTED
Gloucester City Council,23UE,Hackney Carriages,HL100,Fees For Services Received,5350,DVLA Electronic Check,17/01/2017,428414,14.5,NET,Intelligent Data Systems (Uk) Ltd,11067G
Gloucester City Council,23UE,Head Of Regeneration & Eco Dev,GO102,Advertising And Publicity,5702,High St campaign licence,17/01/2017,428444,2000,NET,Gfirst Lep Cic,17186T
Gloucester City Council,23UE,REDACTED,REDACTED,REDACTED,REDACTED,REDACTED,17/01/2017,REDACTED,489.44,NET,REDACTED,REDACTED
Gloucester City Council,23UE,Homelessness,CH120,Fees For Services Received,5350,Interpreting 10/11/2016,17/01/2017,428440,30,NET,Prime Production Ltd,06262F
Gloucester City Council,23UE,Homelessness Prevention,CH122,Fees For Services Received,5350,telephone interpreting 1/11/16,17/01/2017,428439,47,NET,Prime Production Ltd,06262F
Gloucester City Council,23UE,REDACTED,REDACTED,REDACTED,REDACTED,REDACTED,17/01/2017,REDACTED,530,NET,REDACTED,REDACTED
Gloucester City Council,23UE,Homelessness Prevention,CH122,Grants To Advice Centres,7100,EM Beds Q3,17/01/2017,428195,2684.5,NET,P3 (People Potential Possibilities),13809N
Gloucester City Council,23UE,Human Resources,EH100,Contracted Services,6970,Quarter 1 Shared Service payment,17/01/2017,426146,57507,NET,Gloucestershire County Council,18650D
Gloucester City Council,23UE,Human Resources,EH100,Contracted Services,6970,Quarter 2 - shared service payment,17/01/2017,426147,58138,NET,Gloucestershire County Council,18650D
Gloucester City Council,23UE,Internal Communications,RC430,Contracted Services,6970,Grant funding Q4 2016/17,17/01/2017,428449,43662.5,NET,Marketing Gloucester Ltd,08925E
Gloucester City Council,23UE,Investment Property,RB500,General Repair/Maint Buildings,3000,Concrete Barriers,17/01/2017,428261,2940.12,NET,Ermin Plant Hire & Services Ltd,14150V
Gloucester City Council,23UE,Investment Property,RB500,Service Charges,3020,Kings Quarter Dec16- Mar17,17/01/2017,427209,2624.25,NET,Alder King,02367D
Gloucester City Council,23UE,Marchants,LT108,Materials For Sale,5080,Tickets September 2016,17/01/2017,428172,1924,NET,Marchants Coaches Ltd,48151Y
Gloucester City Council,23UE,Nms Contract,HI102,Contracted Services,6970,Pension Recharge December 16,17/01/2017,428408,9303.1,NET,Enterprise (Aol) Ltd,06695G
Gloucester City Council,23UE,Nms Contract,HI102,Fees For Services Received,5350,Kerbside Box,17/01/2017,428063,11949.96,NET,Straight Plc,50537E
Gloucester City Council,23UE,Off Street Car Parks,PP110,Contracted Services,6970,GC Fixed Overhead,17/01/2017,428204,773.48,NET,Apcoa Parking (Uk) Ltd,09954M
Gloucester City Council,23UE,Off Street Car Parks,PP110,Contracted Services,6970,GC Other Items,17/01/2017,428200,14132.47,NET,Apcoa Parking (Uk) Ltd,09954M
Gloucester City Council,23UE,Off Street Car Parks,PP110,Contracted Services,6970,GC P&D and Head Cams,17/01/2017,428201,2118.93,NET,Apcoa Parking (Uk) Ltd,09954M
Gloucester City Council,23UE,Off Street Car Parks,PP110,Contracted Services,6970,GC variable Enforcement,17/01/2017,428203,215.32,NET,Apcoa Parking (Uk) Ltd,09954M
Gloucester City Council,23UE,Off Street Car Parks,PP110,Contracted Services,6970,GC Vehicles,17/01/2017,428202,460.16,NET,Apcoa Parking (Uk) Ltd,09954M
Gloucester City Council,23UE,Off Street Car Parks,PP110,Fees For Services Received,5350,Parking Equipment,17/01/2017,428065,370,NET,Parkeon Ltd,03238G
Gloucester City Council,23UE,Off Street Car Parks,PP110,General Repair/Maint Buildings,3000,Longsmith St car park inspection,17/01/2017,428491,510,NET,Astam G.B.C. Consultancy Ltd,55027L
Gloucester City Council,23UE,Planning Policy & Heritage,PT300,Basic Pay - Temporary Staff,2751,temporary staff w/e 19/12/2016,17/01/2017,428220,2154.42,NET,The Oyster Partnership Limited,14900T
Gloucester City Council,23UE,Planning Policy & Heritage,PT300,Fees For Services Received,5350,infrastructure delivery plan works,17/01/2017,428441,5905,NET,Ove Arup And Partners Ltd,17298E
Gloucester City Council,23UE,Planning Policy & Heritage,PT300,Printing,5300,various printing,17/01/2017,427553,155,NET,Gloucestershire County Council,18650D
Gloucester City Council,23UE,Pollution Control,HE300,Fees For Services Received,5350,various printing,17/01/2017,427553,167.5,NET,Gloucestershire County Council,18650D
Gloucester City Council,23UE,Printing,RP103,Printing,5300,Printing,17/01/2017,428191,460,NET,Alpha Colour Printers Ltd,00945B
Gloucester City Council,23UE,Safer Stronger Communities,FP841,Other Minor Supplies Services,5590,buffet 10/1/17,17/01/2017,428410,46,NET,Hedleys,58915R
Gloucester City Council,23UE,Statutory Testing,RS310,Cctv Servicing & Maint,3016,TIC CCTV service SEP16-AUG17,17/01/2017,427878,114.73,NET,Allcoopers Ltd,52921E
Gloucester City Council,23UE,Statutory Testing,RS310,Fire Alarm Maintenance,3053,Arbor emergency lights,17/01/2017,427277,55,NET,Allcoopers Ltd,52921E
Gloucester City Council,23UE,Statutory Testing,RS310,Fire Alarm Maintenance,3053,Blackfriars emergency lights,17/01/2017,427257,87.5,NET,Allcoopers Ltd,52921E
Gloucester City Council,23UE,Statutory Testing,RS310,Fire Alarm Maintenance,3053,City Museum emergency lights,17/01/2017,427261,220,NET,Allcoopers Ltd,52921E
Gloucester City Council,23UE,Statutory Testing,RS310,Fire Alarm Maintenance,3053,CITY MUSEUM FIRE ALARM,17/01/2017,427264,493,NET,Allcoopers Ltd,52921E
Gloucester City Council,23UE,Statutory Testing,RS310,Fire Alarm Maintenance,3053,Crem emergency lights,17/01/2017,427262,55,NET,Allcoopers Ltd,52921E
Gloucester City Council,23UE,Statutory Testing,RS310,Fire Alarm Maintenance,3053,Crem fire alarm,17/01/2017,427256,218,NET,Allcoopers Ltd,52921E
Gloucester City Council,23UE,Statutory Testing,RS310,Fire Alarm Maintenance,3053,Emergency Lighting,17/01/2017,427774,110,NET,Allcoopers Ltd,52921E
Gloucester City Council,23UE,Statutory Testing,RS310,Fire Alarm Maintenance,3053,Fire Alarm System- The Arbor,17/01/2017,427254,163,NET,Allcoopers Ltd,52921E
Gloucester City Council,23UE,Statutory Testing,RS310,Fire Alarm Maintenance,3053,folk museum emergency lights,17/01/2017,427269,55,NET,Allcoopers Ltd,52921E
Gloucester City Council,23UE,Statutory Testing,RS310,Fire Alarm Maintenance,3053,Guildhall Emergency Lighting,17/01/2017,427272,220,NET,Allcoopers Ltd,52921E
Gloucester City Council,23UE,Statutory Testing,RS310,Fire Alarm Maintenance,3053,Guildhall fire alarm,17/01/2017,427273,438,NET,Allcoopers Ltd,52921E
Gloucester City Council,23UE,Statutory Testing,RS310,Fire Alarm Maintenance,3053,HKP emergency lights,17/01/2017,427270,440,NET,Allcoopers Ltd,52921E
Gloucester City Council,23UE,Statutory Testing,RS310,Fire Alarm Maintenance,3053,HKP fire alarm,17/01/2017,427276,603,NET,Allcoopers Ltd,52921E
Gloucester City Council,23UE,Statutory Testing,RS310,Fire Alarm Maintenance,3053,Kings Walk car park emergency lights,17/01/2017,427268,140.5,NET,Allcoopers Ltd,52921E
Gloucester City Council,23UE,Statutory Testing,RS310,Fire Alarm Maintenance,3053,Longsmith St car park emergency lx,17/01/2017,427263,140.5,NET,Allcoopers Ltd,52921E
Gloucester City Council,23UE,Statutory Testing,RS310,Fire Alarm Maintenance,3053,North Warehouse emergency lights,17/01/2017,427260,110,NET,Allcoopers Ltd,52921E
Gloucester City Council,23UE,Statutory Testing,RS310,Fire Alarm Maintenance,3053,North Warehouse fire alarm,17/01/2017,427275,273,NET,Allcoopers Ltd,52921E
Gloucester City Council,23UE,Statutory Testing,RS310,Fire Alarm Maintenance,3053,Park Aviary emergency lights,17/01/2017,427266,80.5,NET,Allcoopers Ltd,52921E
Gloucester City Council,23UE,Statutory Testing,RS310,Fire Alarm Maintenance,3053,Ranger Centre emergency lights,17/01/2017,427337,55,NET,Allcoopers Ltd,52921E
Gloucester City Council,23UE,Statutory Testing,RS310,Fire Alarm Maintenance,3053,ranger centre fire alarm,17/01/2017,427274,163,NET,Allcoopers Ltd,52921E
Gloucester City Council,23UE,Statutory Testing,RS310,Fire Alarm Maintenance,3053,shopmobility emergency lights,17/01/2017,427267,55,NET,Allcoopers Ltd,52921E
Gloucester City Council,23UE,Statutory Testing,RS310,Fire Alarm Maintenance,3053,Shopmobility fire alarm,17/01/2017,427255,173,NET,Allcoopers Ltd,52921E
Gloucester City Council,23UE,Statutory Testing,RS310,Fire Alarm Maintenance,3053,Swiss Cottage emergency lighting,17/01/2017,427265,108,NET,Allcoopers Ltd,52921E
Gloucester City Council,23UE,Statutory Testing,RS310,Fire Alarm Maintenance,3053,TIC Emergency Lights,17/01/2017,427259,55,NET,Allcoopers Ltd,52921E
Gloucester City Council,23UE,Statutory Testing,RS310,Fire Alarm Maintenance,3053,TIC fire alarm,17/01/2017,427258,163,NET,Allcoopers Ltd,52921E
Gloucester City Council,23UE,Statutory Testing,RS310,Fire Alarm Maintenance,3053,Westgate car park emergency lights,17/01/2017,427271,108,NET,Allcoopers Ltd,52921E
Gloucester City Council,23UE,Statutory Testing,RS310,Service Charges,9510,Engineer for routine maintenance,17/01/2017,427338,412,NET,Cooltherm,06087Z
Gloucester City Council,23UE,Targeted Historic Grants,GY008,Contract Payments,0020,Grant payment re 59-61 Westgate St,17/01/2017,428517,1666,CAP,REDACTED,REDACTED
Gloucester City Council,23UE,The Arbor,HC501,Operational Equipment <5000,5012,Laptop,17/01/2017,428463,1237.22,NET,Revolution Multimedia,07880L
Gloucester City Council,23UE,Tic Rovercard Sales,LT101,Materials For Sale,5080,Tickets Nov- Dec 16,17/01/2017,428214,1551,NET,Stagecoach Services Ltd,56554W
Gloucester City Council,23UE,Tic Rovercard Sales,LT101,Sale Of Goods And Services,9230,Tickets Nov- Dec 16,17/01/2017,428214,-129.25,NET,Stagecoach Services Ltd,56554W
Gloucester City Council,23UE,Tic Trading,LT110,Materials For Sale,5080,christmas cards for resale,17/01/2017,428422,30,NET,James Hopkins Trust,49394H
Gloucester City Council,23UE,Tic Trading,LT110,Publications For Sale,5064,goods for resale,17/01/2017,428421,353.98,NET,David Whyman Map Sales,02653Z
Gloucester City Council,23UE,Vehicles,RS140,Routine R And M - Vehicles,4011,MOT & service,17/01/2017,428432,303.57,NET,123 Car & Commercial,07651E
Gloucester City Council,23UE,Vehicles,RS140,Routine R And M - Vehicles,4011,repair drive shaft,17/01/2017,428431,152.4,NET,123 Car & Commercial,07651E
Gloucester City Council,23UE,Allotments,HI104,Fees For Services Received,5350,grant,18/01/2017,428586,300,NET,Longlevens Allotment Association,17304M
Gloucester City Council,23UE,Business Transformation & Tech,RT700,Licences,5703,BOXI support & maintenance,18/01/2017,428458,4634.78,NET,Software Box Ltd,14185D
Gloucester City Council,23UE,City Museum And Art Gallery,LM200,Publications For Sale,5064,goods for resale,18/01/2017,427819,580.12,NET,Half Moon Bay Ltd,08240F
Gloucester City Council,23UE,Client Revs & Bens Contract,RT240,Computer Software <5000,5425,LADS Programme - November 2016,18/01/2017,428461,13242,NET,Civica Uk Ltd,10841X
Gloucester City Council,23UE,Docks Complex - Castlemeads Cp,RB210,Contracted Services,6970,GC Variable Enforcement,18/01/2017,427020,4081.62,NET,Apcoa Parking (Uk) Ltd,09954M
Gloucester City Council,23UE,Grants To Voluntary Sector,FG100,Abcd Grants,7100A,provision of advice services Q4 2016/17,18/01/2017,428587,15450.25,NET,Gloucester & District Citizens Advice Bureau,07709Y
Gloucester City Council,23UE,Grants To Voluntary Sector,FG100,Abcd Grants,7100A,provision of advice services Q4 2016/17,18/01/2017,428588,18880.5,NET,Gloucester Law Centre,18157R
Gloucester City Council,23UE,REDACTED,REDACTED,REDACTED,REDACTED,REDACTED,18/01/2017,REDACTED,508.75,NET,REDACTED,REDACTED
Gloucester City Council,23UE,Grants To Voluntary Sector,FG100,Members Allocation Fund,7100F,grant funding,18/01/2017,428595,400,NET,One Church,17315G
Gloucester City Council,23UE,Grants To Voluntary Sector,FG100,Members Allocation Fund,7100F,grant funding for defibrillator,18/01/2017,428594,350,NET,Glos Multiple Sclerosis Information & Therapy,15557Y
Gloucester City Council,23UE,Grants To Voluntary Sector,FG100,Members Allocation Fund,7100F,re junior school ticket grant,18/01/2017,428596,500,NET,Sherborne Cinema,16473W
Gloucester City Council,23UE,REDACTED,REDACTED,REDACTED,REDACTED,REDACTED,18/01/2017,REDACTED,163,NET,REDACTED,REDACTED
Gloucester City Council,23UE,Guildhall Cinema,LA202,Maintenance Of Equipment,5030,Barco - Extended Warranty,18/01/2017,428451,1035,NET,Arts Alliance Media Ltd,14477G
Gloucester City Council,23UE,REDACTED,REDACTED,REDACTED,REDACTED,REDACTED,18/01/2017,REDACTED,55,NET,REDACTED,REDACTED
Gloucester City Council,23UE,Marketing Gloucester Charges,RC433,Contracted Services,6970,staff funding Q4 2016/17,18/01/2017,428583,14912.5,NET,Marketing Gloucester Ltd,08925E
Gloucester City Council,23UE,National Express,LT105,Materials For Sale,5080,Tickets December 2016,18/01/2017,428476,8595.55,NET,National Express Ltd,31455K
Gloucester City Council,23UE,National Express,LT105,Sale Of Goods And Services,9230,Tickets December 2016,18/01/2017,428476,-415.86,NET,National Express Ltd,31455K
Gloucester City Council,23UE,Off Street Car Parks,PP110,Contracted Services,6970,GC Fixed Overhead,18/01/2017,427021,773.48,NET,Apcoa Parking (Uk) Ltd,09954M
Gloucester City Council,23UE,Off Street Car Parks,PP110,Contracted Services,6970,GC Other Items,18/01/2017,427017,14562.28,NET,Apcoa Parking (Uk) Ltd,09954M
Gloucester City Council,23UE,Off Street Car Parks,PP110,Contracted Services,6970,GC Variable Enforcement,18/01/2017,427020,226.5,NET,Apcoa Parking (Uk) Ltd,09954M
Gloucester City Council,23UE,Off Street Car Parks,PP110,Contracted Services,6970,GC Vehicles,18/01/2017,427019,460.16,NET,Apcoa Parking (Uk) Ltd,09954M
Gloucester City Council,23UE,Off Street Car Parks,PP110,Contracted Services,6970,P&D and Head Cams,18/01/2017,427018,2124.24,NET,Apcoa Parking (Uk) Ltd,09954M
Gloucester City Council,23UE,Retail Market - Landlord,HM300,Cleaning / Domestic Equipment,5011,Markets towels JAN17,18/01/2017,427891,21.52,NET,Initial Washroom Solutions,06143R
Gloucester City Council,23UE,Retail Market - Landlord,HM300,Cleaning / Domestic Equipment,5011,Services November 2016,18/01/2017,425283,20.52,NET,Initial Washroom Solutions,06143R
Gloucester City Council,23UE,Superbreak,LT104,Materials For Sale,5080,tickets sold on commission - Nov 16,18/01/2017,428462,80.89,NET,Superbreak Mini Holidays,00712D
Gloucester City Council,23UE,Superbreak,LT104,Sale Of Goods And Services,9230,tickets sold on commission - Nov 16,18/01/2017,428462,-27.65,NET,Superbreak Mini Holidays,00712D
Gloucester City Council,23UE,Townscape Heritage Initiative,LY145,Contract Payments,0020,Installation of railings,18/01/2017,428474,7500,CAP,REDACTED,REDACTED
Gloucester City Council,23UE,REDACTED,REDACTED,REDACTED,REDACTED,REDACTED,18/01/2017,REDACTED,1318,CAP,REDACTED,REDACTED
Gloucester City Council,23UE,REDACTED,REDACTED,REDACTED,REDACTED,REDACTED,18/01/2017,REDACTED,425,CAP,REDACTED,REDACTED
Gloucester City Council,23UE,Utilities,PT502,Electricity Supply,3110,Utility Charges,18/01/2017,428490,33929.62,NET,West Mercia Energy,11669Z
Gloucester City Council,23UE,Business Transformation & Tech,RT700,Computer Hardware <5000,5420,lattitude E7470,19/01/2017,428411,1863,NET,Dell Computers Corporation Ltd,55920C
Gloucester City Council,23UE,Cemeteries,HC300,Printing,5300,Printing,19/01/2017,428496,360.49,NET,Gloucestershire County Council,18650D
Gloucester City Council,23UE,Civica Contract Revs & Bens,RT250,Contracted Services,6970,Pension Excess Charges December 16,19/01/2017,428600,11074.19,NET,Civica Uk Ltd,10841X
Gloucester City Council,23UE,Civica It Contract,RT270,Contracted Services,6970,Pension Excess Charges December 16,19/01/2017,428601,902.28,NET,Civica Uk Ltd,10841X
Gloucester City Council,23UE,Client Revs & Bens Contract,RT240,Fees For Services Received,5350,Extension of Area,19/01/2017,428603,1050,NET,Civica Uk Ltd,10841X
Gloucester City Council,23UE,Client Revs & Bens Contract,RT240,Fees For Services Received,5350,Flyers,19/01/2017,428628,2021.5,NET,Civica Uk Ltd,10841X
Gloucester City Council,23UE,Client Revs & Bens Contract,RT240,Fees For Services Received,5350,Post Office Paypoint Implementation,19/01/2017,428614,825,NET,Civica Uk Ltd,10841X
Gloucester City Council,23UE,Contact Centre,RB300,Basic Pay - Temporary Staff,2751,Sessions Sep - Nov 16,19/01/2017,428629,1600,NET,Civica Uk Ltd,10841X
Gloucester City Council,23UE,Contact Centre,RB300,Other Minor Supplies Services,5590,Interpreting 06/01/17,19/01/2017,428612,15,NET,Prime Production Ltd,06262F
Gloucester City Council,23UE,Countryside Unit,LP201,Livestock Foodstuff,5841,Replacement,19/01/2017,428409,2.5,NET,Allflex Europe (Uk) Ltd,13351S
Gloucester City Council,23UE,Crematorium,HC200,"Seeds, Trees, Plants, Shrubs",3028,100 metres,19/01/2017,428672,300,NET,Aran Turf,56656L
Gloucester City Council,23UE,Development Management,PT200,Advertising And Publicity,5702,Advertisement 12/01/2017,19/01/2017,428602,175.3,NET,Local World Ltd,08556P
Gloucester City Council,23UE,Economic Development,FP300,Consultants Fees,5349,Final Invoice,19/01/2017,428633,10000,NET,Athey Consulting Limited,17279J
Gloucester City Council,23UE,Emergency Planning,RO100,Printing,5300,Printing,19/01/2017,428496,230,NET,Gloucestershire County Council,18650D
Gloucester City Council,23UE,Events,LT410,Events,5952,Firework Finale 05/11/16,19/01/2017,428615,5000,NET,Merlin Fireworks Ltd,15045H
Gloucester City Council,23UE,Events,LT410,Events,5952,Licenced Security Guards,19/01/2017,426441,1192,NET,Nsgl Ltd,15246Y
Gloucester City Council,23UE,Folk Museum,LM210,Advertising And Publicity,5702,Foamex Boards,19/01/2017,427187,100,NET,Alpha Colour Printers Ltd,00945B
Gloucester City Council,23UE,Gloucester Guildhall,LA100,General Repair/Maint Buildings,3000,Scaff Tag Inspection 11/01/2017,19/01/2017,428604,148,NET,Global Platforms Ltd,09794K
Gloucester City Council,23UE,Green Garden Waste,HI105,Fees For Services Received,5350,Garden Waste Stickers,19/01/2017,428630,1600,NET,Civica Uk Ltd,10841X
Gloucester City Council,23UE,Guildhall Bar And Caf�,LA210,Catering Provisions -Food,5110,Coffee Machine Rental,19/01/2017,428613,3.52,NET,Ethical Addictions Ltd,11654N
Gloucester City Council,23UE,Guildhall Cinema,LA202,Advertising And Publicity,5702,Printing,19/01/2017,428496,63.55,NET,Gloucestershire County Council,18650D
Gloucester City Council,23UE,REDACTED,REDACTED,REDACTED,REDACTED,REDACTED,19/01/2017,REDACTED,156.25,NET,REDACTED,REDACTED
Gloucester City Council,23UE,REDACTED,REDACTED,REDACTED,REDACTED,REDACTED,19/01/2017,REDACTED,107.29,NET,REDACTED,REDACTED
Gloucester City Council,23UE,Hackney Carriages,HL100,Fees For Services Received,5350,Transcription Services,19/01/2017,428637,175,NET,Bromsgrove District Council,15037G
Gloucester City Council,23UE,Homelessness,CH120,Removal And Storage Fees,5513,Furniture Collection December 16,19/01/2017,428611,168.75,NET,Advanced Removals & Storage Ltd,57142R
Gloucester City Council,23UE,Homelessness,CH120,Removal And Storage Fees,5513,Storage Charges December 16,19/01/2017,428610,171.64,NET,Advanced Removals & Storage Ltd,57142R
Gloucester City Council,23UE,Nms Contract,HI102,Fees For Services Received,5350,Printing,19/01/2017,428496,12000,NET,Gloucestershire County Council,18650D
Gloucester City Council,23UE,Pollution Control,HE300,Fees For Services Received,5350,NO2 tubes & analysis,19/01/2017,428621,104.25,NET,Gradko International Ltd,11063B
Gloucester City Council,23UE,Registration Of Electors,RS400,Postages,5400,Response Plus Service,19/01/2017,428668,235.72,NET,Royal Mail S.Wales & South West,35830S
Gloucester City Council,23UE,Rehousing,CH111,Fees For Services Received,5350,medical report,19/01/2017,428643,20.5,NET,Rosebank Health,03041E
Gloucester City Council,23UE,Rehousing,CH111,Fees For Services Received,5350,Medical Report ,19/01/2017,428608,20.5,NET,Gloucester City Health Centre,02093U
Gloucester City Council,23UE,Rehousing,CH111,Fees For Services Received,5350,Medical Report,19/01/2017,428664,21.5,NET,Rosebank Health,03041E
Gloucester City Council,23UE,Retail Market - Landlord,HM300,General Repair/Maint Buildings,3000,21/12/16 - Harry Keats Cold Room,19/01/2017,428501,44.42,NET,Mitchells (Gloucester) Ltd,30160U
Gloucester City Council,23UE,Safer Stronger Communities,FP841,Other Minor Supplies Services,5590,Safer Gloucester Website,19/01/2017,428632,995,NET,Icon.Net,52505Z
Gloucester City Council,23UE,Shopmobility,PE200,Cleaning Materials,3600,JAN17 MEDICAL & SANITARY WASTE,19/01/2017,427963,12.91,NET,Ocs Group Uk Limited T/A Cannon,06506A
Gloucester City Council,23UE,Shopmobility,PE200,Cleaning Materials,3600,Shopmobility Hygiene/Medical Units,19/01/2017,425463,12.91,NET,Ocs Group Uk Limited T/A Cannon,06506A
Gloucester City Council,23UE,Shopmobility,PE200,Maintenance Of Equipment,5030,scooter servicing,19/01/2017,427992,208,NET,Disabled Care & Mobility,12675V
Gloucester City Council,23UE,The Arbor,HC501,Catering Provisions -Food,5110,Food,19/01/2017,428599,27.03,NET,Total Produce Gloucester,12645E
Gloucester City Council,23UE,The Arbor,HC501,Catering Provisions -Food,5110,Food,19/01/2017,428674,272.09,NET,Bidvest Foodservice (3663),55585U
Gloucester City Council,23UE,The Arbor,HC501,Catering Provisions -Food,5110,Food,19/01/2017,428675,242.22,NET,Bidvest Foodservice (3663),55585U
Gloucester City Council,23UE,The Arbor,HC501,Catering Provisions -Food,5110,Food,19/01/2017,428676,41.35,NET,Total Produce Gloucester,12645E
Gloucester City Council,23UE,The Arbor,HC501,Catering Provisions -Food,5110,Food,19/01/2017,428677,32.88,NET,Total Produce Gloucester,12645E
Gloucester City Council,23UE,The Arbor,HC501,Catering Provisions -Food,5110,Food,19/01/2017,428678,33.4,NET,Total Produce Gloucester,12645E
Gloucester City Council,23UE,The Arbor,HC501,Catering Provisions -Food,5110,Food,19/01/2017,428679,17.34,NET,Total Produce Gloucester,12645E
Gloucester City Council,23UE,The Arbor,HC501,Catering Provisions -Food,5110,Food,19/01/2017,428680,48.56,NET,Total Produce Gloucester,12645E
Gloucester City Council,23UE,The Arbor,HC501,Catering Provisions -Food,5110,Food,19/01/2017,428689,179.6,NET,Bidvest Foodservice (3663),55585U
Gloucester City Council,23UE,The Arbor,HC501,Catering Provisions -Liquor,5111,Drinks,19/01/2017,428622,121.51,NET,Cellar Supplies Cheltenham Ltd,01563L
Gloucester City Council,23UE,REDACTED,REDACTED,REDACTED,REDACTED,REDACTED,19/01/2017,REDACTED,63.25,NET,REDACTED,REDACTED
Gloucester City Council,23UE,Tic Trading,LT110,Publications For Sale,5064,Various Maps,19/01/2017,428625,471.78,NET,David Whyman Map Sales,02653Z
Gloucester City Council,23UE,Barbican Car Park,RB543,General Repair/Maint Buildings,3000,Barbican Rd car park signage,20/01/2017,428456,276,NET,Hanman Split Ltd,56889J
Gloucester City Council,23UE,Celebratory Lights,LT302,Christmas Lights,5024,Christmas lights work,20/01/2017,426687,70,NET,Scs Installations Ltd,10383G
Gloucester City Council,23UE,Cemeteries,HC300,Maint Of Grounds - General,3030,Fraser Fir Cut Tree,20/01/2017,428455,41.66,NET,Norton Plantaria,53679C
Gloucester City Council,23UE,Cems/Crems Admin,HC100,Security Services Fees,5351,Services December 2016,20/01/2017,428498,14.11,NET,G4s Cash Solutions (Uk) Ltd,04290V
Gloucester City Council,23UE,Civica Admin Charges,RT105,Fees For Services Received,5350,Subscription December 2016,20/01/2017,428206,4,NET,Companies House,58954E
Gloucester City Council,23UE,Civica Admin Charges,RT105,Fees For Services Received,5350,Subscription July 16,20/01/2017,428205,4,NET,Companies House,58954E
Gloucester City Council,23UE,Civica Admin Charges,RT105,Postages,5400,Post 12/12 - 30/12 2016,20/01/2017,428662,1010.3,NET,Royal Mail S.Wales & South West,35830S
Gloucester City Council,23UE,Client Revs & Bens Contract,RT240,Bailiffs Fees,5368,VAT on fees collected,20/01/2017,428415,0,NET,Phoenix Commercial Collections Ltd,13435J
Gloucester City Council,23UE,Client Revs & Bens Contract,RT240,Bailiffs Fees,5368,VAT on fees collected,20/01/2017,428419,0,NET,Phoenix Commercial Collections Ltd,13435J
Gloucester City Council,23UE,Client Revs & Bens Contract,RT240,Bailiffs Fees,5368,VAT on fees collected,20/01/2017,428468,0,NET,Phoenix Commercial Collections Ltd,13435J
Gloucester City Council,23UE,Client Revs & Bens Contract,RT240,Bailiffs Fees,5368,VAT on fees collected,20/01/2017,428469,0,NET,Phoenix Commercial Collections Ltd,13435J
Gloucester City Council,23UE,Client Revs & Bens Contract,RT240,Bailiffs Fees,5368,VAT on fees collected,20/01/2017,428470,0,NET,Phoenix Commercial Collections Ltd,13435J
Gloucester City Council,23UE,Client Revs & Bens Contract,RT240,Bailiffs Fees,5368,VAT only invoice,20/01/2017,428407,0,NET,Bristow & Sutor,05450M
Gloucester City Council,23UE,Client Revs & Bens Contract,RT240,Computer Software <5000,5425,NFI LCTRS Extract,20/01/2017,427532,500,NET,Civica Uk Ltd,10841X
Gloucester City Council,23UE,Client Revs & Bens Contract,RT240,Subscriptions,5600,Annual Subscription 17/18,20/01/2017,428209,795,NET,Rating Publishers Ltd,49604W
Gloucester City Council,23UE,Corporate Reporting /Financing,RC504,Fees For Services Received,5350,Childcare Vouchers January 2017,20/01/2017,428482,46.57,NET,Wider Plan Ltd ( Formerly Kiddivouchers),07893B
Gloucester City Council,23UE,Countryside Unit,LP201,Livestock Foodstuff,5841,Castration Ring Pliers & Box,20/01/2017,428638,10.81,NET,Countrywide Farmers,55687J
Gloucester City Council,23UE,Countryside Unit,LP201,Maint Of Grounds - General,3030,Various Items,20/01/2017,428657,377,NET,Loxston Groundcare,14309F
Gloucester City Council,23UE,Countryside Unit,LP201,Subscriptions,5600,Membership 2017,20/01/2017,428658,25,NET,Gloucestershire Orchard Trust,17313L
Gloucester City Council,23UE,Crematorium,HC200,Memorial Plaques,5053,Bronze Plaque,20/01/2017,428647,54,NET,Arkell & Hurcombe,59812T
Gloucester City Council,23UE,Crematorium,HC200,Memorial Plaques,5053,Bronze Plaques,20/01/2017,428646,657,NET,Arkell & Hurcombe,59812T
Gloucester City Council,23UE,Docks Complex - Services,RB100,Security Services Fees,5351,Services December 2016,20/01/2017,428498,7.06,NET,G4s Cash Solutions (Uk) Ltd,04290V
Gloucester City Council,23UE,Economic Development,FP300,Subscriptions,5600,2017 membership,20/01/2017,428434,625,NET,Atcm,04754X
Gloucester City Council,23UE,General Works Fund,RY203,Consultants Fees,0030,December 2016,20/01/2017,428478,608,CAP,Graham Parker Environmental Design Solutions,16390B
Gloucester City Council,23UE,Green Garden Waste,HI105,Additional Non-Tender Items,6973,garden waste tags,20/01/2017,428452,554,NET,Eurolabel,10252Z
Gloucester City Council,23UE,Group Mgr Cult Ser & Tourism,GR102,Consultants Fees,5349,Great Place Scheme,20/01/2017,428659,4675,NET,Festivals And Events International Ltd,15992Z
Gloucester City Council,23UE,Homelessness Prevention,CH122,Basic Pay - Temporary Staff,2751,Temporary staff w/e 13/01/17,20/01/2017,428670,193.95,NET,One To One Recruitment,04752H
Gloucester City Council,23UE,Members Support,RC300,Members Training,5535,Annual Licensing Conference 17,20/01/2017,428424,199,NET,Local Government Association,11683F
Gloucester City Council,23UE,Pollution Control,HE300,Fees For Services Received,5350,Collection Fee,20/01/2017,427791,80,NET,Harry Buckland,16135W
Gloucester City Council,23UE,Pollution Control,HE300,Fees For Services Received,5350,Collection of Moped,20/01/2017,428631,230,NET,Harry Buckland,16135W
Gloucester City Council,23UE,Pollution Control,HE300,Fees For Services Received,5350,Fleece Jackets,20/01/2017,428412,49.75,NET,Safpro Industrial Supply Co,39190W
Gloucester City Council,23UE,Pollution Control,HE300,Fees For Services Received,5350,vehicle disposal,20/01/2017,428417,180,NET,Harry Buckland,16135W
Gloucester City Council,23UE,Pollution Control,HE300,Fees For Services Received,5350,vehicle disposal,20/01/2017,428418,350,NET,Harry Buckland,16135W
Gloucester City Council,23UE,Rehousing,CH111,Fees For Services Received,5350,Medical Report,20/01/2017,428645,20.5,NET,Barnwood Medical Practice,11672L
Gloucester City Council,23UE,Rehousing,CH111,Fees For Services Received,5350,Medical Report,20/01/2017,428644,20.5,NET,Rosebank Health,03041E
Gloucester City Council,23UE,Aspire Admin Charges,LC105,Security Services Fees,5351,Charges February 2017,23/01/2017,428686,187.72,NET,G4s Cash Solutions (Uk) Ltd,04290V
Gloucester City Council,23UE,Cems/Crems Admin,HC100,Security Services Fees,5351,Charges February 2017,23/01/2017,428686,107,NET,G4s Cash Solutions (Uk) Ltd,04290V
Gloucester City Council,23UE,City Museum And Art Gallery,LM200,Security Services Fees,5351,Charges February 2017,23/01/2017,428686,93.86,NET,G4s Cash Solutions (Uk) Ltd,04290V
Gloucester City Council,23UE,Coll Fund Revenue Account,ZC100,County Council Precept,7460,precept payment due 22/02/17,23/01/2017,428849,4168751.7,NET,Gloucestershire County Council,18650D
Gloucester City Council,23UE,Coll Fund Revenue Account,ZC100,Nndr Central Share,7474,brr pooling payment due 20/02/17,23/01/2017,428847,424982,NET,Gloucestershire County Council,18650D
Gloucester City Council,23UE,Coll Fund Revenue Account,ZC100,Nndr Tariff,7473,brr pooling payment due 20/02/17,23/01/2017,428848,1331309,NET,Stroud District Council,74737T
Gloucester City Council,23UE,Coll Fund Revenue Account,ZC100,Police Precept,7461,precept payment due 22/2/17,23/01/2017,428850,773478.2,NET,"Police & Crime Commissioner, Gloucestershire",49521B
Gloucester City Council,23UE,Docks Complex - Services,RB100,Security Services Fees,5351,Charges February 2017,23/01/2017,428686,280.4,NET,G4s Cash Solutions (Uk) Ltd,04290V
Gloucester City Council,23UE,Employers Pension Contribs,ZR355,Pension Contribs Incl Backf,2901,pension deficit for Jan17,23/01/2017,428846,238916.67,NET,Gloucestershire County Council,10614L
Gloucester City Council,23UE,Folk Museum,LM210,Security Services Fees,5351,Charges February 2017,23/01/2017,428686,93.86,NET,G4s Cash Solutions (Uk) Ltd,04290V
Gloucester City Council,23UE,Gloucester Guildhall,LA100,Security Services Fees,5351,Charges February 2017,23/01/2017,428686,93.86,NET,G4s Cash Solutions (Uk) Ltd,04290V
Gloucester City Council,23UE,Human Resources,EH100,Fees For Services Received,5350,Payroll Charges December 2016,23/01/2017,428684,2769.11,NET,Gloucestershire County Council,18650D
Gloucester City Council,23UE,Tourism Marketing,LT100,Security Services Fees,5351,Charges February 2017,23/01/2017,428686,93.86,NET,G4s Cash Solutions (Uk) Ltd,04290V
Gloucester City Council,23UE,Blackfriars,LA609,Contract Cleaning,3620,Cover Cleaning Dec 2016,24/01/2017,428085,130,NET,Into Cleaning,14609P
Gloucester City Council,23UE,Business Transformation & Tech,RT700,Internet Service Provider Fees,5429,Charges Jan - Feb 2017,24/01/2017,428841,115.67,NET,Virgin Media Business,01869B
Gloucester City Council,23UE,Cemeteries,HC300,Major R And M - Vehicles,4010,Kawasaki strimmer repairs,24/01/2017,428809,120.33,NET,Garden Machinery Gloucester,55641K
Gloucester City Council,23UE,Cemeteries,HC300,Purch Vehicles/M. Plant <5000,4000,beacon lamps,24/01/2017,428810,12.12,NET,Garden Machinery Gloucester,55641K
Gloucester City Council,23UE,Cemeteries,HC300,Trade Refuse Tipping Fees,6297,Skip,24/01/2017,428089,155,NET,Allstone Sand & Gravel Aggregates Ltd,00940M
Gloucester City Council,23UE,Cemeteries,HC300,Trade Refuse Tipping Fees,6297,Waste,24/01/2017,428087,1680,NET,Allstone Sand & Gravel Aggregates Ltd,00940M
Gloucester City Council,23UE,Civica It Contract,RT270,Contracted Services,6970,IT Service Charges Feb 2017,24/01/2017,428219,48061.14,NET,Civica Uk Ltd,10841X
Gloucester City Council,23UE,Client Revs & Bens Contract,RT240,Computer Software <5000,5425,NDR Revaluation,24/01/2017,427797,2550,NET,Civica Uk Ltd,10841X
Gloucester City Council,23UE,Contact Centre,RB300,Postages,5400,Post 09/12 - 29/12 2016,24/01/2017,428475,1339.44,NET,Royal Mail S.Wales & South West,35830S
Gloucester City Council,23UE,Contact Centre,RB300,Stationery,5302,stationery,24/01/2017,428779,6.8,NET,Banner,17243G
Gloucester City Council,23UE,Contact Centre,RB300,Stationery,5302,stationery,24/01/2017,428804,26.9,NET,Banner,17243G
Gloucester City Council,23UE,Contact Centre,RB300,Stationery,5302,Various Items,24/01/2017,428623,41.38,NET,Banner,17243G
Gloucester City Council,23UE,Contact Centre,RB300,Stationery,5302,Various Items,24/01/2017,428624,122.91,NET,Banner,17243G
Gloucester City Council,23UE,Contact Centre,RB300,Uniforms,5201,Blouses,24/01/2017,428618,39.55,NET,Meltemi Company Clothing Limited,54572N
Gloucester City Council,23UE,Contact Centre,RB300,Uniforms,5201,Straight Skirt,24/01/2017,428617,20.1,NET,Meltemi Company Clothing Limited,54572N
Gloucester City Council,23UE,Council Streetcare Team,HI101,Fees For Services Received,5350,Barnwood Park Green Flag award,24/01/2017,428465,314,NET,Keep Britain Tidy,10053H
Gloucester City Council,23UE,Council Streetcare Team,HI101,Fees For Services Received,5350,Robinswood Hill green flag award,24/01/2017,428466,365,NET,Keep Britain Tidy,10053H
Gloucester City Council,23UE,Council Streetcare Team,HI101,Fees For Services Received,5350,Saintbridge pond green flag award,24/01/2017,428464,314,NET,Keep Britain Tidy,10053H
Gloucester City Council,23UE,Council Streetcare Team,HI101,Maint Of Grounds - General,3030,dibond signs,24/01/2017,428792,34,NET,Severn Signs Ltd,49841D
Gloucester City Council,23UE,Countryside Unit,LP201,Maint Of Grounds - General,3030,"Rental of Shed - Jan, Feb & Mar 17",24/01/2017,428174,1500,NET,REDACTED,REDACTED
Gloucester City Council,23UE,Crematorium,HC200,Repair/Maint Of Fixed Plant,3006,Cleaning Services,24/01/2017,428626,495,NET,Zagota Creations,03211D
Gloucester City Council,23UE,Crematorium,HC200,"Seeds, Trees, Plants, Shrubs",3028,100 Metres,24/01/2017,428839,300,NET,Aran Turf,56656L
Gloucester City Council,23UE,Crematorium,HC200,Uniforms,5201,Navy Trousers,24/01/2017,428660,18.23,NET,Safpro Industrial Supply Co,39190W
Gloucester City Council,23UE,Development Management,PT200,Advertising And Publicity,5702,adverts 15/12/16,24/01/2017,428799,233.73,NET,Local World Ltd,08556P
Gloucester City Council,23UE,Development Management,PT200,Advertising And Publicity,5702,adverts 5/1/17,24/01/2017,428423,146.08,NET,Local World Ltd,08556P
Gloucester City Council,23UE,Financial Services,RT200,Basic Pay - Temporary Staff,2751,temporary staff w/e 06/01/2017,24/01/2017,428649,684.25,NET,Robert Half Ltd,03959K
Gloucester City Council,23UE,Grants To Voluntary Sector,FG100,Members Allocation Fund,7100F,Mobile Field Shelter,24/01/2017,428459,200,NET,Friendship Cafe,59375U
Gloucester City Council,23UE,Grants To Voluntary Sector,FG100,Members Allocation Fund,7100F,recycling & litter bins,24/01/2017,428800,1050,NET,Wybone Limited,13540L
Gloucester City Council,23UE,REDACTED,REDACTED,REDACTED,REDACTED,REDACTED,24/01/2017,REDACTED,158,NET,REDACTED,REDACTED
Gloucester City Council,23UE,Homelessness,CH120,Rent In Advance,5516,Housing rent in advance,24/01/2017,428856,304,NET,Cgt Lettings Ltd,09004C
Gloucester City Council,23UE,Homelessness Prevention,CH122,Fees For Services Received,5350,housing deposit,24/01/2017,428857,550,NET,Cgt Lettings Ltd,09004C
Gloucester City Council,23UE,Homelessness Prevention,CH122,Fees For Services Received,5350,housing deposit,24/01/2017,428856,430,NET,Cgt Lettings Ltd,09004C
Gloucester City Council,23UE,Off Street Car Parks,PP110,Lease Lines,5411,Paper Labels,24/01/2017,428167,256,NET,Jm Prime Technologies Limited,17249U
Gloucester City Council,23UE,Pollution Control,HE300,Fees For Services Received,5350,Pollution Prevention Work Nov 16,24/01/2017,428635,1580.61,NET,Bromsgrove District Council,15037G
Gloucester City Council,23UE,Rehousing,CH111,Fees For Services Received,5350,medical report,24/01/2017,428802,150,NET,Hadwen Medical Practice,59727U
Gloucester City Council,23UE,Rehousing,CH111,Fees For Services Received,5350,medical report,24/01/2017,428803,20.5,NET,Bartongate Surgery,05680S
Gloucester City Council,23UE,Senior Management Restructurin,RO200,Pension Contribs Incl Backf,2901,December 16 Actuals,24/01/2017,428843,26210.38,NET,Gloucestershire County Council,10614L
Gloucester City Council,23UE,Taxi Marshalling Scheme,HL101,Taxi Marshals,5387,taxi marshalls 23/12 & 24/12,24/01/2017,428795,273,NET,Sterling Security Solutions Ltd,17306H
Gloucester City Council,23UE,Taxi Marshalling Scheme,HL101,Taxi Marshals,5387,taxi marshalls 6/1 & 7/1/17,24/01/2017,428796,234,NET,Sterling Security Solutions Ltd,17306H
Gloucester City Council,23UE,The Arbor,HC501,Catering Provisions -Food,5110,Food,24/01/2017,428681,115.63,NET,Janes Pantry,24500W
Gloucester City Council,23UE,The Arbor,HC501,Catering Provisions -Food,5110,Food w/e 01/01/2017,24/01/2017,428257,127.19,NET,Janes Pantry,24500W
Gloucester City Council,23UE,The Arbor,HC501,Catering Provisions -Food,5110,Food w/e 08/01/2017,24/01/2017,428497,63.39,NET,Janes Pantry,24500W
Gloucester City Council,23UE,Tic Trading,LT110,Materials For Sale,5080,Mini Tins,24/01/2017,428640,131.34,NET,New English Teas Ltd,00118Y
Gloucester City Council,23UE,Tic Trading,LT110,Materials For Sale,5080,Various Items,24/01/2017,428627,374.2,NET,Elgate,11620G
Gloucester City Council,23UE,Council Streetcare Team,HI101,Fees For Services Received,5350,Glevum Court play area inspections,25/01/2017,428652,90,NET,Greenfields Garden Services Ltd,48130G
Gloucester City Council,23UE,Council Streetcare Team,HI101,Maint Of Grounds - General,3030,RFU program pitch drainage works,25/01/2017,428816,250,NET,Paul Gibson Sports Pitch Maintenance,16477M
Gloucester City Council,23UE,Development Management,PT200,Basic Pay - Temporary Staff,2751,temporary staff w/c 09/01/2017,25/01/2017,428827,2811.12,NET,The Oyster Partnership Limited,14900T
Gloucester City Council,23UE,Development Management,PT200,Basic Pay - Temporary Staff,2751,temporary staff w/c 09/01/2017,25/01/2017,428811,1738.75,NET,The Oyster Partnership Limited,14900T
Gloucester City Council,23UE,REDACTED,REDACTED,REDACTED,REDACTED,REDACTED,25/01/2017,REDACTED,269.5,NET,REDACTED,REDACTED
Gloucester City Council,23UE,Development Management,PT200,Microfilming / Cd-Rom Storage,5330,Storage December 2016,25/01/2017,428207,22,NET,Transmedia Technology Ltd,08635T
Gloucester City Council,23UE,Docks Complex - Services,RB100,General Repair/Maint Buildings,3000,Flat Desm Stnd,25/01/2017,427362,74.99,NET,Viking Direct Ltd,45400E
Gloucester City Council,23UE,Docks Complex - Services,RB100,General Repair/Maint Buildings,3000,monitor arms,25/01/2017,426505,119,NET,Viking Direct Ltd,45400E
Gloucester City Council,23UE,Food Safety,HE100,Hospitality,5122,Room Hire 20/12/16,25/01/2017,428788,67.4,NET,Aspire Sports & Cultural Trust,08135V
Gloucester City Council,23UE,Green Waste Vehicle,RY221,Contract Payments,0020,Kerbie Bag,25/01/2017,427246,20056,CAP,Cromwell Polythene Limited,17204T
Gloucester City Council,23UE,Guildhall Bar And Caf�,LA210,Catering Provisions -Liquor,5111,drinks for resale,25/01/2017,427875,115.2,NET,Gloucester Brewery,13373F
Gloucester City Council,23UE,REDACTED,REDACTED,REDACTED,REDACTED,REDACTED,25/01/2017,REDACTED,220.8,NET,REDACTED,REDACTED
Gloucester City Council,23UE,REDACTED,REDACTED,REDACTED,REDACTED,REDACTED,25/01/2017,REDACTED,163,NET,REDACTED,REDACTED
Gloucester City Council,23UE,Hmo Licences,HE520,Operational Equipment <5000,5012,Transcription Services,25/01/2017,428636,209.38,NET,Bromsgrove District Council,15037G
Gloucester City Council,23UE,REDACTED,REDACTED,REDACTED,REDACTED,REDACTED,25/01/2017,REDACTED,360.04,NET,REDACTED,REDACTED
Gloucester City Council,23UE,REDACTED,REDACTED,REDACTED,REDACTED,REDACTED,25/01/2017,REDACTED,530,NET,REDACTED,REDACTED
Gloucester City Council,23UE,REDACTED,REDACTED,REDACTED,REDACTED,REDACTED,25/01/2017,REDACTED,530,NET,REDACTED,REDACTED
Gloucester City Council,23UE,Housing Strategy & Enabling,CH110,Vocational Training,2970,Briefing Event 10/01/17,25/01/2017,428778,80,NET,Support Solutions (Uk) Ltd,17318A
Gloucester City Council,23UE,Investment Property,RB500,Repair/Maint Of Fixed Plant,3006,GL1 heat meter verification,25/01/2017,427508,450,NET,2ea Consulting Ltd,15500E
Gloucester City Council,23UE,Museum Phase 2 Hlf,GY001,Contract Payments,0020,Building Control Fees,25/01/2017,428780,415.1,CAP,Stroud District Council,42500D
Gloucester City Council,23UE,Nms Contract,HI102,Additional Non-Tender Items,6973,Green Bins,25/01/2017,428683,6618.41,NET,Enterprise (Aol) Ltd,06695G
Gloucester City Council,23UE,Planning Policy & Heritage,PT300,Basic Pay - Temporary Staff,2751,temporary staff w/c 9/1/17,25/01/2017,428812,2328.42,NET,The Oyster Partnership Limited,14900T
Gloucester City Council,23UE,Pollution Control,HE300,Fees For Services Received,5350,transcription services,25/01/2017,428794,187.5,NET,Bromsgrove District Council,15037G
Gloucester City Council,23UE,Registration Of Electors,RS400,Fees For Services Received,5350,Individual Electoral Registration 2016,25/01/2017,428813,353.33,NET,Electoral Reform Services,02206F
Gloucester City Council,23UE,Rehousing,CH111,Fees For Services Received,5350,Medical Report,25/01/2017,428801,20.5,NET,Dr R Watkins & Partners,59237H
Gloucester City Council,23UE,Statutory Testing,RS310,General Repair/Maint Buildings,3000,Asbestos Sampling,25/01/2017,428844,365,NET,Gloucester Asbestos Ltd,00496K
Gloucester City Council,23UE,The Fleece,RB530,General Repair/Maint Buildings,3000,Fleec Hotel - Evaluation,25/01/2017,428404,9045,NET,Cotswold Archaeology Ltd,09180E
Gloucester City Council,23UE,Allotments,HI104,Water Supply,3400,Consumption Savings December 16,26/01/2017,428438,149.33,NET,Advanced Demand Side Management Ltd,16229K
Gloucester City Council,23UE,Blackfriars Weddings,LA220,Hire Of Equipment,5020,chair cover hire 27/8/16,26/01/2017,428946,141.75,NET,Cotswold Chair Covers,13553B
Gloucester City Council,23UE,Business Transformation & Tech,RT700,Computer Hardware <5000,5420,alcatel phone,26/01/2017,428406,750,NET,Indigo Telecom Group Ltd,09159V
Gloucester City Council,23UE,Business Transformation & Tech,RT700,Computer Hardware <5000,5420,Call Out Charge,26/01/2017,428403,139,NET,Danwood Group Limited,09555G
Gloucester City Council,23UE,Business Transformation & Tech,RT700,Computer Software <5000,5425,Charges Oct - Dec 16,26/01/2017,428236,2434,NET,Vodafone Ltd,11843H
Gloucester City Council,23UE,Business Transformation & Tech,RT700,Computer Software Maintenance,5427,info@work support,26/01/2017,424327,2729.14,NET,Northgate Public Services Uk Ltd,08982S
Gloucester City Council,23UE,Business Transformation & Tech,RT700,Computer Software Maintenance,5427,reinstall software on Win7 machine,26/01/2017,428054,320,NET,G4s Fire & Security Systems (Uk),13090X
Gloucester City Council,23UE,Bus Station,RB400,Water Supply,3400,acct 7890105225 SEPT16,26/01/2017,424976,163.33,NET,Severn Trent Water,01823H
Gloucester City Council,23UE,Bus Station,RB400,Water Supply,3400,Consumption Savings December 16,26/01/2017,428438,41.66,NET,Advanced Demand Side Management Ltd,16229K
Gloucester City Council,23UE,Cemeteries,HC300,Operational Materials,5070,cleaning materials,26/01/2017,428181,219.62,NET,Acs Business Supplies Ltd,15791M
Gloucester City Council,23UE,Cemeteries,HC300,Repair/Maint Of Monuments,3004,RC 28/15 & fibres,26/01/2017,428933,379.98,NET,Easy Mix Ltd,01403L
Gloucester City Council,23UE,Cemeteries,HC300,Tyres,4014,tyres,26/01/2017,428930,62,NET,Ats Euromaster Ltd,06005E
Gloucester City Council,23UE,City Museum And Art Gallery,LM200,Security Services Fees,5351,Annual Keyholding Service,26/01/2017,428616,210,NET,Glevum Security Ltd,03249B
Gloucester City Council,23UE,City Museum And Art Gallery,LM200,Sewerage And Environ Charges,3402,Waste Services,26/01/2017,428230,46.8,NET,Ocs Group Uk Limited T/A Cannon,06506A
Gloucester City Council,23UE,Contact Centre,RB300,Postages,5400,Post 30/12 - 12/01 2017,26/01/2017,428831,1151.19,NET,Royal Mail S.Wales & South West,35830S
Gloucester City Council,23UE,Contact Centre,RB300,Postages,5400,Response Plus Service,26/01/2017,428830,310.74,NET,Royal Mail S.Wales & South West,35830S
Gloucester City Council,23UE,Contact Centre,RB300,Stationery,5302,stationery,26/01/2017,428934,26.4,NET,Banner,17243G
Gloucester City Council,23UE,Contaminated Land,HE301,Fees For Services Received,5350,NOV16 contaminated land work,26/01/2017,428793,2014.32,NET,Bromsgrove District Council,15037G
Gloucester City Council,23UE,Council Streetcare Team,HI101,Operational Materials,5070,Fence Mounted Sign,26/01/2017,428791,75,NET,Severn Signs Ltd,49841D
Gloucester City Council,23UE,Council Streetcare Team,HI101,Signs / Nameplates,3039,Replace SNP Posts,26/01/2017,428641,410.4,NET,Enterprise (Aol) Ltd,06695G
Gloucester City Council,23UE,Council Streetcare Team,HI101,Water Supply,3400,acct 7890105225 SEPT16,26/01/2017,424976,6.34,NET,Severn Trent Water,01823H
Gloucester City Council,23UE,Council Streetcare Team,HI101,Water Supply,3400,Consumption Savings December 16,26/01/2017,428438,10.67,NET,Advanced Demand Side Management Ltd,16229K
Gloucester City Council,23UE,Council Streetcare Team,HI101,Water Supply,3400,Tariff Savings December 2016,26/01/2017,428437,48.11,NET,Advanced Demand Side Management Ltd,16229K
Gloucester City Council,23UE,Countryside Unit,LP201,Water Supply,3400,Consumption Savings December 16,26/01/2017,428438,12.4,NET,Advanced Demand Side Management Ltd,16229K
Gloucester City Council,23UE,Crematorium,HC200,Equipment For Sale,5050,Kenilworth Bench,26/01/2017,428787,470.82,NET,Codec Facilities Ltd,14338Y
Gloucester City Council,23UE,Crematorium,HC200,Equipment For Sale,5050,memorial bench,26/01/2017,428786,470.82,NET,Codec Facilities Ltd,14338Y
Gloucester City Council,23UE,Crematorium,HC200,Maint Of Grounds - General,3030,casket for ashes remains,26/01/2017,428942,408,NET,P & L Manufacturing,57600F
Gloucester City Council,23UE,Crematorium,HC200,Maint Of Grounds - General,3030,Rockery Beds,26/01/2017,428832,746.75,NET,Genus Plant Sourcing,14143S
Gloucester City Council,23UE,Crematorium,HC200,Memorial Plaques,5053,memorial plaques,26/01/2017,428929,105,NET,Arkell & Hurcombe,59812T
Gloucester City Council,23UE,Crematorium,HC200,Memorial Plaques,5053,plaques,26/01/2017,428932,312,NET,Arkell & Hurcombe,59812T
Gloucester City Council,23UE,Crematorium,HC200,Repair/Maint Of Monuments,3004,mamorial bench,26/01/2017,428941,1341.5,NET,F J Cambridge & Co Ltd,48841N
Gloucester City Council,23UE,Crematorium,HC200,Water Supply,3400,acct 7890105225 SEPT16,26/01/2017,424976,36.39,NET,Severn Trent Water,01823H
Gloucester City Council,23UE,Crematorium,HC200,Water Supply,3400,Consumption Savings December 16,26/01/2017,428438,3.53,NET,Advanced Demand Side Management Ltd,16229K
Gloucester City Council,23UE,Daniels Brook S106,LY120,Contract Payments,0020,Various items,26/01/2017,428656,2937,CAP,Proludic Ltd,03576G
Gloucester City Council,23UE,Development Management,PT200,Advertising And Publicity,5702,adverts 19/01/17,26/01/2017,428937,321.38,NET,Local World Ltd,08556P
Gloucester City Council,23UE,Docks Complex - Services,RB100,Cleaning Materials,3600,cleaning materials,26/01/2017,428181,310.34,NET,Acs Business Supplies Ltd,15791M
Gloucester City Council,23UE,Docks Complex - Services,RB100,Hire Of Equipment,5020,Lease Rental,26/01/2017,428064,212.57,NET,Siemens Financial Services Ltd,08349H
Gloucester City Council,23UE,Docks Complex - Services,RB100,Hire Of Equipment,5020,WESSEX PRODUCTS LEASING LTD,26/01/2017,428606,422.24,NET,Wessex Products (Leasing) Ltd,03684C
Gloucester City Council,23UE,Docks Complex - Services,RB100,Recycling,3631,Recycling Dec 16,26/01/2017,428168,101,NET,Printwaste Recycling,57114W
Gloucester City Council,23UE,Docks Complex - Services,RB100,Recycling,3631,Shredding & Recycling,26/01/2017,428173,113.9,NET,Printwaste Recycling,57114W
Gloucester City Council,23UE,Docks Complex - Services,RB100,Water Supply,3400,Consumption Savings December 16,26/01/2017,428438,23.43,NET,Advanced Demand Side Management Ltd,16229K
Gloucester City Council,23UE,Docks Complex - Telephones,RB120,Mobile Phones,5409,Charges December 16,26/01/2017,428682,331.32,NET,O2 Uk,16206Y
Gloucester City Council,23UE,Docks Complex - Telephones,RB120,Mobile Phones,5409,Charges December 2016,26/01/2017,428685,1017,NET,O2 Uk,16206Y
Gloucester City Council,23UE,Docks Complex - Telephones,RB120,Mobile Phones,5409,Samsung Galaxy & Alcatel Phones,26/01/2017,428634,399.48,NET,O2 Uk,16206Y
Gloucester City Council,23UE,Docks Complex - Telephones,RB120,Telephones And Fax,5410,Call Charges December 2016,26/01/2017,428445,3914.81,NET,Gamma Business Communications,10260A
Gloucester City Council,23UE,Docks Complex - Telephones,RB120,Telephones And Fax,5410,Charges December 2016,26/01/2017,428483,2522.81,NET,Gamma Business Communications,10260A
Gloucester City Council,23UE,Events,LT410,Events,5952,NOV16 fireworks services,26/01/2017,428936,684,NET,A-Star Traffic Management,16212D
Gloucester City Council,23UE,Financial Services,RT200,Consultants Fees,5349,CIVICA UK LTD,26/01/2017,428807,121.3,NET,Civica Uk Ltd,10841X
Gloucester City Council,23UE,Folk Museum,LM210,Security Services Fees,5351,Annual Keyholding Service,26/01/2017,428616,210,NET,Glevum Security Ltd,03249B
Gloucester City Council,23UE,Folk Museum,LM210,Sewerage And Environ Charges,3402,Disposal Unit,26/01/2017,428229,38.73,NET,Ocs Group Uk Limited T/A Cannon,06506A
Gloucester City Council,23UE,Gloucester Guildhall,LA100,Cleaning Materials,3600,Waste Service,26/01/2017,428228,148.2,NET,Ocs Group Uk Limited T/A Cannon,06506A
Gloucester City Council,23UE,Gloucester Guildhall,LA100,Lift Maintenance,3051,Engineer 10/10/16,26/01/2017,428833,93.75,NET,Pickerings Europe Ltd,58816U
Gloucester City Council,23UE,Gloucester Guildhall,LA100,Lift Maintenance,3051,Engineer 17/11/16,26/01/2017,428834,70.31,NET,Pickerings Europe Ltd,58816U
Gloucester City Council,23UE,Guildhall Bar And Caf�,LA210,Catering Provisions -Food,5110,food,26/01/2017,428952,156.76,NET,Woodward Foodservice,10714F
Gloucester City Council,23UE,Guildhall Bar And Caf�,LA210,Catering Provisions -Food,5110,food,26/01/2017,428954,137.75,NET,Woodward Foodservice,10714F
Gloucester City Council,23UE,REDACTED,REDACTED,REDACTED,REDACTED,REDACTED,26/01/2017,REDACTED,300,NET,REDACTED,REDACTED
Gloucester City Council,23UE,REDACTED,REDACTED,REDACTED,REDACTED,REDACTED,26/01/2017,REDACTED,700,NET,REDACTED,REDACTED
Gloucester City Council,23UE,REDACTED,REDACTED,REDACTED,REDACTED,REDACTED,26/01/2017,REDACTED,317.16,NET,REDACTED,REDACTED
Gloucester City Council,23UE,REDACTED,REDACTED,REDACTED,REDACTED,REDACTED,26/01/2017,REDACTED,630,NET,REDACTED,REDACTED
Gloucester City Council,23UE,Investment Property,RB500,General Repair/Maint Buildings,3000,Engineer 09/01/17,26/01/2017,428845,168.74,NET,Pickerings Europe Ltd,58816U
Gloucester City Council,23UE,Investment Property,RB500,Lift Maintenance,3051,Works 12/12/2016,26/01/2017,428480,1123.28,NET,Pickerings Europe Ltd,58816U
Gloucester City Council,23UE,Investment Property,RB500,Lift Maintenance,3051,Works 12/12/2016,26/01/2017,428661,429.03,NET,Pickerings Europe Ltd,58816U
Gloucester City Council,23UE,Investment Property,RB500,Water Supply,3400,acct 7890105225 SEPT16,26/01/2017,424976,192.41,NET,Severn Trent Water,01823H
Gloucester City Council,23UE,Investment Property,RB500,Water Supply,3400,Consumption Savings December 16,26/01/2017,428438,49.3,NET,Advanced Demand Side Management Ltd,16229K
Gloucester City Council,23UE,Investment Property,RB500,Water Supply,3400,Tariff Savings December 2016,26/01/2017,428437,13.57,NET,Advanced Demand Side Management Ltd,16229K
Gloucester City Council,23UE,Legal Services,RS200,Contracted Services,6970,One Legal Fees Q3,26/01/2017,428931,76114.56,NET,Tewkesbury Borough Council,43800C
Gloucester City Council,23UE,Nms Contract,HI102,Operational Materials,5070,"10,000 Bags",26/01/2017,428782,953,NET,Polystar Plastics Ltd,01120C
Gloucester City Council,23UE,Northwarehouse,RB150,Lift Maintenance,3051,N Warehouse lift service FEB-MAY17,26/01/2017,427991,709.62,NET,Schindler Ltd,06826C
Gloucester City Council,23UE,Off Street Car Parks,PP110,Contracted Services,6970,Cashless Parking Fees Dec 16,26/01/2017,428486,534.92,NET,Chipside Ltd,06535T
Gloucester City Council,23UE,Off Street Car Parks,PP110,Contracted Services,6970,Third Party Charges Dec 16,26/01/2017,428485,331.25,NET,Chipside Ltd,06535T
Gloucester City Council,23UE,Off Street Car Parks,PP110,Lease Lines,5411,callout 29/11/16 - exit barrier repairs,26/01/2017,427987,525,NET,Wps United Kingdom Ltd,16424K
Gloucester City Council,23UE,Off Street Car Parks,PP110,Lease Lines,5411,Callout Charge 03/01/2017,26/01/2017,428479,210,NET,Wps United Kingdom Ltd,16424K
Gloucester City Council,23UE,Off Street Car Parks,PP110,Water Supply,3400,acct 7890105225 SEPT16,26/01/2017,424976,1602.79,NET,Severn Trent Water,01823H
Gloucester City Council,23UE,Off Street Car Parks,PP110,Water Supply,3400,Consumption Savings December 16,26/01/2017,428438,1.19,NET,Advanced Demand Side Management Ltd,16229K
Gloucester City Council,23UE,Off Street Car Parks,PP110,Water Supply,3400,Tariff Savings December 2016,26/01/2017,428437,13.57,NET,Advanced Demand Side Management Ltd,16229K
Gloucester City Council,23UE,Parks Contract Management,LP100,Maint Of Grounds - General,3030,Birch Ave & Windfall Way works,26/01/2017,427762,156.47,NET,Enterprise (Aol) Ltd,06695G
Gloucester City Council,23UE,Parks Contract Management,LP100,Maint Of Grounds - General,3030,Various Items,26/01/2017,425823,181.5,NET,Hags-Smp Ltd,00672P
Gloucester City Council,23UE,Pollution Control,HE300,Fees For Services Received,5350,NO2 tubes & analysis,26/01/2017,428898,104.25,NET,Gradko International Ltd,11063B
Gloucester City Council,23UE,Pollution Control,HE300,Fees For Services Received,5350,NO2 tubes & analysis,26/01/2017,428901,20.1,NET,Gradko International Ltd,11063B
Gloucester City Council,23UE,Pollution Control,HE300,Fees For Services Received,5350,vehicle disposal,26/01/2017,428893,80,NET,Harry Buckland,16135W
Gloucester City Council,23UE,Pollution Control,HE300,Fees For Services Received,5350,vehicle disposal,26/01/2017,428894,80,NET,Harry Buckland,16135W
Gloucester City Council,23UE,Pollution Control,HE300,Fees For Services Received,5350,vehicle disposal,26/01/2017,428895,80,NET,Harry Buckland,16135W
Gloucester City Council,23UE,Pollution Control,HE300,Fees For Services Received,5350,vehicle disposal,26/01/2017,428896,220,NET,Harry Buckland,16135W
Gloucester City Council,23UE,Pollution Control,HE300,Fees For Services Received,5350,vehicle disposal,26/01/2017,428897,220,NET,Harry Buckland,16135W
Gloucester City Council,23UE,Public Conveniences (Client),HI400,Water Supply,3400,Tariff Savings December 2016,26/01/2017,428437,81.91,NET,Advanced Demand Side Management Ltd,16229K
Gloucester City Council,23UE,Ranger Centre/Netheridge Wks,RY167,Contract Payments,0020,Kubota service,26/01/2017,428945,559.51,CAP,E Buckland Garden Machinery LLP,17238Z
Gloucester City Council,23UE,Rehousing,CH111,Fees For Services Received,5350,Medical Report,26/01/2017,428835,20.5,NET,Rosebank Health,03041E
Gloucester City Council,23UE,Rehousing,CH111,Fees For Services Received,5350,MEDICAL REPORT,26/01/2017,427578,75,NET,Hadwen Medical Practice,59727U
Gloucester City Council,23UE,Rehousing,CH111,Fees For Services Received,5350,Medical Report,26/01/2017,428484,20.5,NET,Rosebank Health,03041E
Gloucester City Council,23UE,Retail Market - Landlord,HM300,Advertising And Publicity,5702,Year Book entry,26/01/2017,428939,100,NET,The Worlds Fair Ltd,49321M
Gloucester City Council,23UE,Retail Market - Landlord,HM300,General Repair/Maint Buildings,3000,Various Items,26/01/2017,428828,4244,NET,Brakel Airvent Ltd,51073T
Gloucester City Council,23UE,Shopmobility,PE200,Maintenance Of Equipment,5030,Batteries,26/01/2017,426827,168,NET,Disabled Care & Mobility,12675V
Gloucester City Council,23UE,Shopmobility,PE200,Maintenance Of Equipment,5030,Repairs,26/01/2017,425802,120,NET,Disabled Care & Mobility,12675V
Gloucester City Council,23UE,Shopmobility,PE200,Maintenance Of Equipment,5030,Replacement Tube,26/01/2017,423462,60,NET,Disabled Care & Mobility,12675V
Gloucester City Council,23UE,Statutory Testing,RS310,Fire Fighting Equipment,3008,TIC fire risk assessment,26/01/2017,427503,220,NET,Allcoopers Ltd,52921E
Gloucester City Council,23UE,Taxi Marshalling Scheme,HL101,Taxi Marshals,5387,security services 13/1 & 14/1/17,26/01/2017,428940,260,NET,Sterling Security Solutions Ltd,17306H
Gloucester City Council,23UE,The Arbor,HC501,Cleaning Materials,3600,Arbor sanitary disposal units x 2,26/01/2017,427561,34.56,NET,Minster Cleaning Services,02158R
Gloucester City Council,23UE,The Arbor,HC501,Cleaning Materials,3600,cleaning materials,26/01/2017,428181,146.14,NET,Acs Business Supplies Ltd,15791M
Gloucester City Council,23UE,The Arbor,HC501,Cleaning Materials,3600,sanitary disposal at Arbor,26/01/2017,427560,17.28,NET,Minster Cleaning Services,02158R
Gloucester City Council,23UE,The Fleece,RB530,General Repair/Maint Buildings,3000,Old Fleece Hotel works,26/01/2017,427358,176,NET,Abbey Loos Limited,10787B
Gloucester City Council,23UE,Tourism Marketing,LT100,Window Cleaning,3610,window cleaning Nov16,26/01/2017,428928,12,NET,Interserve Fs (Uk) Limited,00442K
Gloucester City Council,23UE,Townscape Heritage Initiative,LY145,Contract Payments,0020,THI Grant,26/01/2017,428943,15312,CAP,REDACTED,REDACTED
Gloucester City Council,23UE,Utilities,PT502,Electricity Supply,3110,Utilities Charges,26/01/2017,428669,15466.63,NET,West Mercia Energy,11669Z
Gloucester City Council,23UE,Utilities,PT502,Gas Supply,3100,Gas Charges Dec 16,26/01/2017,428413,139.14,NET,British Gas,59061X
Gloucester City Council,23UE,Utilities,PT502,Gas Supply,3100,Utilities Charges,26/01/2017,428669,52.5,NET,West Mercia Energy,11669Z
Gloucester City Council,23UE,Allotments,HI104,Water Supply,3400,Charges August 2016,27/01/2017,423856,28.98,NET,Severn Trent Water,01823H
Gloucester City Council,23UE,Blackfriars Weddings,LA220,Hire Of Equipment,5020,glass hire,27/01/2017,429125,218.8,NET,Gloucester Event Hire,56935D
Gloucester City Council,23UE,Blackfriars Weddings,LA220,Hire Of Equipment,5020,tablecloth & napkin hire,27/01/2017,429126,310,NET,Gloucester Event Hire,56935D
Gloucester City Council,23UE,Business Transformation & Tech,RT700,Computer Consumables,5422,Various Items,27/01/2017,427825,409,NET,Dell Computers Corporation Ltd,55920C
Gloucester City Council,23UE,Business Transformation & Tech,RT700,Computer Hardware Maintenance,5426,Installation of software,27/01/2017,427728,320,NET,G4s Fire & Security Systems (Uk),13090X
Gloucester City Council,23UE,Business Transformation & Tech,RT700,Computer Software <5000,5425,Unifrom Orbit Software,27/01/2017,427308,12775,NET,Idox Group,07229U
Gloucester City Council,23UE,Business Transformation & Tech,RT700,Internet Service Provider Fees,5429,Charges Dec - Jan,27/01/2017,427835,30,NET,Virgin Media Payments Ltd,09376J
Gloucester City Council,23UE,Business Transformation & Tech,RT700,Internet Service Provider Fees,5429,Charges Jan - Feb 17,27/01/2017,428663,39,NET,Virgin Media Payments Ltd,09376J
Gloucester City Council,23UE,Bus Station,RB400,Water Supply,3400,Charges August 2016,27/01/2017,423856,525.59,NET,Severn Trent Water,01823H
Gloucester City Council,23UE,Cctv Revenue Budget,FP501,Security Equipment Serv/Repair,3038,CCTC line rental APR2016-MAR2017,27/01/2017,429124,68826.76,NET,Bt Redcare,04692U
Gloucester City Council,23UE,City Centre Cctv System,PY275,Contract Payments,0020,CCTC line rental APR2016-MAR2017,27/01/2017,429124,0,CAP,Bt Redcare,04692U
Gloucester City Council,23UE,City Museum And Art Gallery,LM200,Security Services Fees,5351,FEB17-APR17 rental,27/01/2017,429061,47.69,NET,Secom Plc,51471A
Gloucester City Council,23UE,City Museum And Art Gallery,LM200,Security Services Fees,5351,Redcare Q4 2016 FEB-APR17,27/01/2017,429062,326.8,NET,Secom Plc,51471A
Gloucester City Council,23UE,City Museum And Art Gallery,LM200,Water Supply,3400,Charges August 2016,27/01/2017,423856,716.47,NET,Severn Trent Water,01823H
Gloucester City Council,23UE,Client Revs & Bens Contract,RT240,Bailiffs Fees,5368,VAT Due,27/01/2017,428814,0,NET,Bristow & Sutor,05450M
Gloucester City Council,23UE,Client Revs & Bens Contract,RT240,Bailiffs Fees,5368,VAT due on statutory fees,27/01/2017,428783,0,NET,Bristow & Sutor,05450M
Gloucester City Council,23UE,Client Revs & Bens Contract,RT240,Bailiffs Fees,5368,VAT ONLY INVOICE,27/01/2017,429070,0,NET,Bristow & Sutor,05450M
Gloucester City Council,23UE,Contact Centre,RB300,Uniforms,5201,workwear,27/01/2017,428784,36.8,NET,Meltemi Company Clothing Limited,54572N
Gloucester City Council,23UE,Council Streetcare Team,HI101,Fees For Services Received,5350,"Grass cutting at The Orchard, Quedgeley",27/01/2017,428654,316,NET,Greenfields Garden Services Ltd,48130G
Gloucester City Council,23UE,Council Streetcare Team,HI101,Fees For Services Received,5350,Grass cutting at Diamond Jubilee Close,27/01/2017,428655,180,NET,Greenfields Garden Services Ltd,48130G
Gloucester City Council,23UE,Council Streetcare Team,HI101,Operational Materials,5070,Barnwood Pond,27/01/2017,429128,1950,NET,Rj Contracting (Environmental) Ltd,07429H
Gloucester City Council,23UE,Council Streetcare Team,HI101,Water Supply,3400,Charges August 2016,27/01/2017,423856,48.27,NET,Severn Trent Water,01823H
Gloucester City Council,23UE,Countryside Unit,LP201,Routine R And M - Vehicles,4011,parts,27/01/2017,429041,81,NET,A C Belting Ltd,00250X
Gloucester City Council,23UE,Crematorium,HC200,Licences,5703,2017 membership,27/01/2017,428416,916.7,NET,Federation Of Burial And Crem Authorities,49758R
Gloucester City Council,23UE,Crematorium,HC200,Repair/Maint Of Fixed Plant,3006,service visit 19/1/17,27/01/2017,428935,312.5,NET,Crowcon Detection Instruments Limited,07233D
Gloucester City Council,23UE,Crematorium,HC200,"Seeds, Trees, Plants, Shrubs",3028,TURF,27/01/2017,429026,300,NET,Aran Turf,56656L
Gloucester City Council,23UE,Crematorium,HC200,"Seeds, Trees, Plants, Shrubs",3028,TURF,27/01/2017,429027,150,NET,Aran Turf,56656L
Gloucester City Council,23UE,Crematorium,HC200,Water Supply,3400,Charges August 2016,27/01/2017,423856,49.73,NET,Severn Trent Water,01823H
Gloucester City Council,23UE,Development Management,PT200,Basic Pay - Temporary Staff,2751,temporary staff w/c 16/1/17,27/01/2017,428949,1749.8,NET,The Oyster Partnership Limited,14900T
Gloucester City Council,23UE,Development Management,PT200,Basic Pay - Temporary Staff,2751,temporary staff w/c 16/1/17,27/01/2017,428947,1566.24,NET,The Oyster Partnership Limited,14900T
Gloucester City Council,23UE,Development Management,PT200,Fees For Services Received,5350,BRUTON KNOWLES,27/01/2017,428402,4438,NET,Bruton Knowles,57534T
Gloucester City Council,23UE,Development Management,PT200,Fees For Services Received,5350,LAND DEVT ENQUIRY WORKS,27/01/2017,429029,3860,NET,Bruton Knowles,57534T
Gloucester City Council,23UE,Development Management,PT200,Fees For Services Received,5350,Winneycroft Lane Appeal works,27/01/2017,428401,4160,NET,Bruton Knowles,57534T
Gloucester City Council,23UE,Disabled Facilities Grants,CY013,Disabled Facility Grants,0074,disabled facilities grant mdf5198 final fee,27/01/2017,429046,4828.49,CAP,Mears Home Improvement Ltd,00096G
Gloucester City Council,23UE,Docks Complex - Catering Servs,RB110,Sale Of Council Products,9220,food,27/01/2017,428822,44.88,NET,Janes Pantry,24500W
Gloucester City Council,23UE,Docks Complex - Catering Servs,RB110,Sale Of Council Products,9220,food,27/01/2017,428825,100.61,NET,Janes Pantry,24500W
Gloucester City Council,23UE,Docks Complex - Services,RB100,Operational Equipment <5000,5012,LAMPS,27/01/2017,429030,31,NET,City Electrical Factors,09325C
Gloucester City Council,23UE,Elmbridge Openspace Improv,LY164,Contract Payments,0020,Maedowleaze play area equipment installation,27/01/2017,428653,3445,CAP,Greenfields Garden Services Ltd,48130G
Gloucester City Council,23UE,Financial Services,RT200,Basic Pay - Temporary Staff,2751,temorary staff w/e 13/01/17,27/01/2017,428815,782,NET,Robert Half Ltd,03959K
Gloucester City Council,23UE,Financial Services,RT200,Fees For Services Received,5350,RIPA seminar 10/1/17,27/01/2017,428806,164.66,NET,Cotswold District Council,13954C
Gloucester City Council,23UE,Financial Services,RT200,Fees For Services Received,5350,VAT only,27/01/2017,428826,0,NET,Wansbroughs Solicitors,55500F
Gloucester City Council,23UE,General Drainage Works,PY241,Contract Payments,0020,Barnwood Pond,27/01/2017,429128,3000,CAP,Rj Contracting (Environmental) Ltd,07429H
Gloucester City Council,23UE,Grants To Voluntary Sector,FG100,Hospitality,5122,Room Hire,27/01/2017,428605,50,NET,Gloucester Academy Of Music,17280A
Gloucester City Council,23UE,Grants To Voluntary Sector,FG100,Members Allocation Fund,7100F,recycling bins,27/01/2017,429024,700,NET,Wybone Limited,13540L
Gloucester City Council,23UE,Guildhall Bar And Caf�,LA210,Catering Provisions -Food,5110,food,27/01/2017,429042,7.14,NET,Total Produce Gloucester,12645E
Gloucester City Council,23UE,Guildhall Bar And Caf�,LA210,Catering Provisions -Food,5110,food,27/01/2017,429047,4.76,NET,Total Produce Gloucester,12645E
Gloucester City Council,23UE,Guildhall Bar And Caf�,LA210,Catering Provisions -Food,5110,food,27/01/2017,429048,4.76,NET,Total Produce Gloucester,12645E
Gloucester City Council,23UE,Guildhall Bar And Caf�,LA210,Catering Provisions -Food,5110,food,27/01/2017,429049,4.76,NET,Total Produce Gloucester,12645E
Gloucester City Council,23UE,Guildhall Bar And Caf�,LA210,Catering Provisions -Food,5110,food,27/01/2017,429051,7.14,NET,Total Produce Gloucester,12645E
Gloucester City Council,23UE,Guildhall Bar And Caf�,LA210,Catering Provisions -Food,5110,food,27/01/2017,429053,7.14,NET,Total Produce Gloucester,12645E
Gloucester City Council,23UE,Guildhall Bar And Caf�,LA210,Catering Provisions -Food,5110,food,27/01/2017,429055,7.14,NET,Total Produce Gloucester,12645E
Gloucester City Council,23UE,Guildhall Bar And Caf�,LA210,Catering Provisions -Food,5110,Food,27/01/2017,429064,7.14,NET,Total Produce Gloucester,12645E
Gloucester City Council,23UE,Guildhall Bar And Caf�,LA210,Catering Provisions -Food,5110,FOOD,27/01/2017,429028,165.65,NET,Woody's Fruit & Veg,11798L
Gloucester City Council,23UE,Guildhall Bar And Caf�,LA210,Catering Provisions -Food,5110,FOOD,27/01/2017,429043,7.14,NET,Total Produce Gloucester,12645E
Gloucester City Council,23UE,Guildhall Bar And Caf�,LA210,Catering Provisions -Food,5110,FOOD,27/01/2017,429044,7.14,NET,Total Produce Gloucester,12645E
Gloucester City Council,23UE,Guildhall Bar And Caf�,LA210,Catering Provisions -Food,5110,FOOD,27/01/2017,429045,4.76,NET,Total Produce Gloucester,12645E
Gloucester City Council,23UE,Guildhall Bar And Caf�,LA210,Catering Provisions -Food,5110,FOOD,27/01/2017,429057,4.76,NET,Total Produce Gloucester,12645E
Gloucester City Council,23UE,Guildhall Bar And Caf�,LA210,Catering Provisions -Food,5110,FOOD,27/01/2017,429059,144,NET,Winstones Ice Cream Ltd,56347D
Gloucester City Council,23UE,Guildhall Bar And Caf�,LA210,Catering Provisions -Food,5110,Milk,27/01/2017,427188,4.76,NET,Total Produce Gloucester,12645E
Gloucester City Council,23UE,Guildhall Bar And Caf�,LA210,Catering Provisions -Liquor,5111,DRINKS,27/01/2017,429058,1623.42,NET,Cellar Supplies Cheltenham Ltd,01563L
Gloucester City Council,23UE,Guildhall Bar And Caf�,LA210,Catering Provisions -Liquor,5111,DRINKS,27/01/2017,429060,115.2,NET,Gloucester Brewery,13373F
Gloucester City Council,23UE,REDACTED,REDACTED,REDACTED,REDACTED,REDACTED,27/01/2017,REDACTED,1000,NET,REDACTED,REDACTED
Gloucester City Council,23UE,REDACTED,REDACTED,REDACTED,REDACTED,REDACTED,27/01/2017,REDACTED,300,NET,REDACTED,REDACTED
Gloucester City Council,23UE,REDACTED,REDACTED,REDACTED,REDACTED,REDACTED,27/01/2017,REDACTED,500,NET,REDACTED,REDACTED
Gloucester City Council,23UE,REDACTED,REDACTED,REDACTED,REDACTED,REDACTED,27/01/2017,REDACTED,600,NET,REDACTED,REDACTED
Gloucester City Council,23UE,REDACTED,REDACTED,REDACTED,REDACTED,REDACTED,27/01/2017,REDACTED,750,NET,REDACTED,REDACTED
Gloucester City Council,23UE,REDACTED,REDACTED,REDACTED,REDACTED,REDACTED,27/01/2017,REDACTED,400,NET,REDACTED,REDACTED
Gloucester City Council,23UE,REDACTED,REDACTED,REDACTED,REDACTED,REDACTED,27/01/2017,REDACTED,500,NET,REDACTED,REDACTED
Gloucester City Council,23UE,REDACTED,REDACTED,REDACTED,REDACTED,REDACTED,27/01/2017,REDACTED,1400,NET,REDACTED,REDACTED
Gloucester City Council,23UE,REDACTED,REDACTED,REDACTED,REDACTED,REDACTED,27/01/2017,REDACTED,1500,NET,REDACTED,REDACTED
Gloucester City Council,23UE,REDACTED,REDACTED,REDACTED,REDACTED,REDACTED,27/01/2017,REDACTED,150,NET,REDACTED,REDACTED
Gloucester City Council,23UE,REDACTED,REDACTED,REDACTED,REDACTED,REDACTED,27/01/2017,REDACTED,180,NET,REDACTED,REDACTED
Gloucester City Council,23UE,REDACTED,REDACTED,REDACTED,REDACTED,REDACTED,27/01/2017,REDACTED,935,NET,REDACTED,REDACTED
Gloucester City Council,23UE,Homelessness Prevention,CH122,Fees For Services Received,5350,Medical Report,27/01/2017,429065,20.5,NET,Saintbridge Surgery,58374F
Gloucester City Council,23UE,Investment Property,RB500,Rents,3200,Rent - 25/12/16 - 24/03/2017,27/01/2017,427050,118.75,NET,Telereal Services Ltd,15121I
Gloucester City Council,23UE,Investment Property,RB500,Rents,3200,Rent Jan16 - Dec16,27/01/2017,427824,6.75,NET,Network Rail,01638E
Gloucester City Council,23UE,Investment Property,RB500,Rents,3200,Unit 12-16 Liability Grosvenor Sep - Dec,27/01/2017,423498,276.25,NET,Alder King,15624J
Gloucester City Council,23UE,Investment Property,RB500,Service Charges,3020,Unit 12-16 Dec16 - Mar17,27/01/2017,427814,276.25,NET,Alder King,15624J
Gloucester City Council,23UE,Investment Property,RB500,Water Supply,3400,Charges August 2016,27/01/2017,423856,2894.42,NET,Severn Trent Water,01823H
Gloucester City Council,23UE,Meet & Greet,FP309,Advertising And Publicity,5702,CDC tourism yearbook listing,27/01/2017,428927,155,NET,Diversified Business Communications Uk Ltd,15016R
Gloucester City Council,23UE,Off Street Car Parks,PP110,Lease Lines,5411,ticket & receipt rolls,27/01/2017,427969,585,NET,Wps United Kingdom Ltd,16424K
Gloucester City Council,23UE,Off Street Car Parks,PP110,Rents,3200,RENT JUN-DEC16,27/01/2017,419081,220,NET,Eddisons Commercial (Property Management) Ltd,08767Y
Gloucester City Council,23UE,Off Street Car Parks,PP110,Water Supply,3400,Charges August 2016,27/01/2017,423856,2190.41,NET,Severn Trent Water,01823H
Gloucester City Council,23UE,Planning Policy & Heritage,PT300,Advertising And Publicity,5702,adverts 16/1/17,27/01/2017,428902,409.02,NET,Local World Ltd,08556P
Gloucester City Council,23UE,Planning Policy & Heritage,PT300,Basic Pay - Temporary Staff,2751,temporary staff w/c 16/1/17,27/01/2017,428948,2282.12,NET,The Oyster Partnership Limited,14900T
Gloucester City Council,23UE,Rehousing,CH111,Fees For Services Received,5350,medical report,27/01/2017,427217,20.5,NET,Bartongate Surgery,05680S
Gloucester City Council,23UE,Rehousing,CH111,Fees For Services Received,5350,Medical Reports,27/01/2017,425247,17.08,NET,Gloucester Health Access Centre,11611H
Gloucester City Council,23UE,Retail Market - Landlord,HM300,Lift Maintenance,3051,Engineer 09/11/2016,27/01/2017,428829,168.75,NET,Pickerings Europe Ltd,58816U
Gloucester City Council,23UE,Robinswood All Paths Project,LY162,Contract Payments,0020,litter bins,27/01/2017,429025,518,CAP,Wybone Limited,13540L
Gloucester City Council,23UE,Safer Stronger Communities,FP841,Other Minor Supplies Services,5590,advertising,27/01/2017,429054,300,NET,Gladiator Group,17317C
Gloucester City Council,23UE,Safer Stronger Communities,FP841,Other Minor Supplies Services,5590,Grant Payment Barton Fayre 2017,27/01/2017,429071,250,NET,Fair Shares,07250D
Gloucester City Council,23UE,Safer Stronger Communities,FP841,Other Minor Supplies Services,5590,hire of hall 23/1/17,27/01/2017,429052,100,NET,The Friendship Cafe Ltd,14853A
Gloucester City Council,23UE,Safer Stronger Communities,FP841,Other Minor Supplies Services,5590,Replacement Prints,27/01/2017,428781,195,NET,Severn Signs Ltd,49841D
Gloucester City Council,23UE,Statutory Testing,RS310,Fire Alarm Maintenance,3053,Annual Maintenance,27/01/2017,427014,88,NET,Allcoopers Ltd,52921E
Gloucester City Council,23UE,Statutory Testing,RS310,Fire Alarm Maintenance,3053,Annual Maintenance,27/01/2017,427015,11.25,NET,Allcoopers Ltd,52921E
Gloucester City Council,23UE,Statutory Testing,RS310,Fire Alarm Maintenance,3053,Blackfriars fire extinguishers,27/01/2017,427502,33.75,NET,Allcoopers Ltd,52921E
Gloucester City Council,23UE,Superbreak,LT104,Materials For Sale,5080,TICKETS SOLD ON COMMISSION,27/01/2017,429068,343.8,NET,Superbreak Mini Holidays,00712D
Gloucester City Council,23UE,Superbreak,LT104,Sale Of Goods And Services,9230,TICKETS SOLD ON COMMISSION,27/01/2017,429068,-32.73,NET,Superbreak Mini Holidays,00712D
Gloucester City Council,23UE,The Arbor,HC501,Catering Provisions -Food,5110,food,27/01/2017,428900,229.76,NET,Janes Pantry,24500W
Gloucester City Council,23UE,The Arbor,HC501,Catering Provisions -Food,5110,FOOD,27/01/2017,429031,4.96,NET,Total Produce Gloucester,12645E
Gloucester City Council,23UE,The Arbor,HC501,Catering Provisions -Food,5110,FOOD,27/01/2017,429032,9.26,NET,Total Produce Gloucester,12645E
Gloucester City Council,23UE,The Arbor,HC501,Catering Provisions -Food,5110,FOOD,27/01/2017,429033,67.92,NET,Total Produce Gloucester,12645E
Gloucester City Council,23UE,The Arbor,HC501,Catering Provisions -Food,5110,FOOD,27/01/2017,429034,65.97,NET,Total Produce Gloucester,12645E
Gloucester City Council,23UE,The Arbor,HC501,Catering Provisions -Food,5110,FOOD,27/01/2017,429035,80.25,NET,Total Produce Gloucester,12645E
Gloucester City Council,23UE,The Arbor,HC501,Catering Provisions -Food,5110,FOOD,27/01/2017,429036,24.86,NET,Total Produce Gloucester,12645E
Gloucester City Council,23UE,The Arbor,HC501,Catering Provisions -Food,5110,FOOD,27/01/2017,429037,43.89,NET,Total Produce Gloucester,12645E
Gloucester City Council,23UE,The Arbor,HC501,Catering Provisions -Food,5110,FOOD,27/01/2017,429038,63.07,NET,Total Produce Gloucester,12645E
Gloucester City Council,23UE,The Arbor,HC501,Catering Provisions -Food,5110,FOOD,27/01/2017,429039,252.95,NET,Bidvest Foodservice (3663),55585U
Gloucester City Council,23UE,The Arbor,HC501,Catering Provisions -Food,5110,FOOD,27/01/2017,429040,175.4,NET,Bidvest Foodservice (3663),55585U
Gloucester City Council,23UE,Theatre Tokens,LT106,Materials For Sale,5080,tickets sold on commission,27/01/2017,429069,1190,NET,Society Of London Theatre,05656Z
Gloucester City Council,23UE,Theatre Tokens,LT106,Sale Of Goods And Services,9230,tickets sold on commission,27/01/2017,429069,-59.5,NET,Society Of London Theatre,05656Z
Gloucester City Council,23UE,The Fleece,RB530,General Repair/Maint Buildings,3000,Fleece Hotel portaloos,27/01/2017,428430,176,NET,Abbey Loos Limited,10787B
Gloucester City Council,23UE,REDACTED,REDACTED,REDACTED,REDACTED,REDACTED,27/01/2017,REDACTED,112.8,NET,REDACTED,REDACTED
Gloucester City Council,23UE,Tourism Marketing,LT100,Other Minor Supplies Services,5590,12 MONTHS ALARM MAINTENANCE,27/01/2017,429056,294.79,NET,Laser Alarms Ltd,26325V
Gloucester City Council,23UE,Tree Planting Grant Funded,LY150,Contract Payments,0020,trees order,27/01/2017,429127,398,CAP,Mount Pleasant Trees,51352K
Gloucester City Council,23UE,REDACTED,REDACTED,REDACTED,REDACTED,REDACTED,31/01/2017,REDACTED,419.73,NET,REDACTED,REDACTED
Gloucester City Council,23UE,REDACTED,REDACTED,REDACTED,REDACTED,REDACTED,31/01/2017,REDACTED,40,NET,REDACTED,REDACTED
Gloucester City Council,23UE,REDACTED,REDACTED,REDACTED,REDACTED,REDACTED,31/01/2017,REDACTED,96.23,NET,REDACTED,REDACTED
Gloucester City Council,23UE,REDACTED,REDACTED,REDACTED,REDACTED,REDACTED,31/01/2017,REDACTED,43.65,NET,REDACTED,REDACTED
Gloucester City Council,23UE,REDACTED,REDACTED,REDACTED,REDACTED,REDACTED,31/01/2017,REDACTED,59.18,NET,REDACTED,REDACTED
Gloucester City Council,23UE,REDACTED,REDACTED,REDACTED,REDACTED,REDACTED,31/01/2017,REDACTED,460.4,NET,REDACTED,REDACTED
Gloucester City Council,23UE,REDACTED,REDACTED,REDACTED,REDACTED,REDACTED,31/01/2017,REDACTED,46.75,NET,REDACTED,REDACTED
Gloucester City Council,23UE,REDACTED,REDACTED,REDACTED,REDACTED,REDACTED,31/01/2017,REDACTED,2.99,NET,REDACTED,REDACTED
Gloucester City Council,23UE,REDACTED,REDACTED,REDACTED,REDACTED,REDACTED,31/01/2017,REDACTED,1516.5,NET,REDACTED,REDACTED
Gloucester City Council,23UE,REDACTED,REDACTED,REDACTED,REDACTED,REDACTED,31/01/2017,REDACTED,407,NET,REDACTED,REDACTED
Gloucester City Council,23UE,REDACTED,REDACTED,REDACTED,REDACTED,REDACTED,31/01/2017,REDACTED,24.62,NET,REDACTED,REDACTED
Gloucester City Council,23UE,Retail Market - Landlord,HM300,Cleaning / Domestic Equipment,5011,Services Oct - Dec 2016,31/01/2017,423927,20.52,NET,Initial Washroom Solutions,06143R
Gloucester City Council,23UE,REDACTED,REDACTED,REDACTED,REDACTED,REDACTED,31/01/2017,REDACTED,85.03,NET,REDACTED,REDACTED
Gloucester City Council,23UE,REDACTED,REDACTED,REDACTED,REDACTED,REDACTED,31/01/2017,REDACTED,5170.01,NET,REDACTED,REDACTED
Gloucester City Council,23UE,REDACTED,REDACTED,REDACTED,REDACTED,REDACTED,,REDACTED,60,NET,REDACTED,REDACTED
,,,,,,,,Sum:,8992489.54,,,
